Workbook

Sheet Daily Pick 5
L1: Disimulate | Q1: Enter Number of Samples Here | Y1: (1 to 1500)
L2: A | M2: B | N2: C | O2: D | P2: E | S2: Last Two Draws
L3: =IF(L4-1>=0,L4-1,9) -> 9 | M3: =IF(M4-1>=0,M4-1,9) -> 4 | N3: 3 | O3: 1 | P3: 9 | Q3: ← -1 | S3: =LastNPosition(E$8:E$1507,-2) -> 3 | T3: =LastNPosition(F$8:F$1507,-2) -> 3 | U3: =LastNPosition(G$8:G$1507,-2) -> 5 | V3: =LastNPosition(H$8:H$1507,-2) -> 2 | W3: =LastNPosition(I$8:I$1507,-2) -> 8 | X3: Z₂ | Z3: Red Box Threshold | AD3: (0.00 to 1.00)
L4: =Disimulate($K$8:$K$17,L$8:L$17) -> 0 | M4: =Disimulate($K$8:$K$17,M$8:M$17) -> 5 | N4: =Disimulate($K$8:$K$17,N$8:N$17) -> 4 | O4: =Disimulate($K$8:$K$17,O$8:O$17) -> 2 | P4: =Disimulate($K$8:$K$17,P$8:P$17) -> 0 | Q4: ← 0 | S4: =LastNPosition(E$8:E$1507,-1) -> 9 | T4: =LastNPosition(F$8:F$1507,-1) -> 8 | U4: =LastNPosition(G$8:G$1507,-1) -> 0 | V4: =LastNPosition(H$8:H$1507,-1) -> 2 | W4: =LastNPosition(I$8:I$1507,-1) -> 9 | X4: Z₁ | Z4: DisimulateNexus
L5: =IF(L4+1<=9,L4+1,0) -> 1 | M5: 6 | N5: 5 | O5: 3 | P5: =IF(P4+1<=9,P4+1,0) -> 1 | Q5: ← +1 | Z5: Distribution | AG5: Normalized | AN5: Inverted
E6: Draws | L6: Distribution | R6: 30 | S6: DisimulateNexus | Y6: 0.5 | Z6: Standard | AG6: Standard | AN6: Standard
A7: Index | B7: Year | C7: Month | D7: Day | E7: A | F7: B | G7: C | H7: D | I7: E | K7: Number | L7: A | M7: B | N7: C | O7: D | P7: E | R7: Index | S7: A | T7: B | U7: C | V7: D | W7: E | Y7: Number | Z7: A | AA7: B | AB7: C | AC7: D | AD7: E | AF7: Number | AG7: A | AH7: B | AI7: C | AJ7: D | AK7: E | AM7: Number | AN7: A | AO7: B | AP7: C | AQ7: D | AR7: E
A8: 1 | B8: 2015 | C8: 1 | D8: 1 | E8: 7 | F8: 6 | G8: 5 | H8: 1 | I8: 5 | K8: 0 | L8: =FrequencyCount(E$8:E$1507,$K8) -> 21 | M8: =FrequencyCount(F$8:F$1507,$K8) -> 18 | N8: =FrequencyCount(G$8:G$1507,$K8) -> 17 | O8: =FrequencyCount(H$8:H$1507,$K8) -> 16 | P8: =FrequencyCount(I$8:I$1507,$K8) -> 21 | R8: =IF(R6>0,1,"") -> 1 | S8: =IF(ISNUMBER($R8),DisimulateNexus($K$8:$K$17,L$8:L$17,S$3,S$4),"") -> 2 | T8: =IF(ISNUMBER($R8),DisimulateNexus($K$8:$K$17,M$8:M$17,T$3,T$4),"") -> 0 | U8: =IF(ISNUMBER($R8),DisimulateNexus($K$8:$K$17,N$8:N$17,U$3,U$4),"") -> 8 | V8: =IF(ISNUMBER($R8),DisimulateNexus($K$8:$K$17,O$8:O$17,V$3,V$4),"") -> 5 | W8: =IF(ISNUMBER($R8),DisimulateNexus($K$8:$K$17,P$8:P$17,W$3,W$4),"") -> 2 | Y8: 0 | Z8: =FrequencyCount(S$8:S$1507,$Y8) -> 3 | AA8: =FrequencyCount(T$8:T$1507,$Y8) -> 5 | AB8: =FrequencyCount(U$8:U$1507,$Y8) -> 1 | AC8: =FrequencyCount(V$8:V$1507,$Y8) -> 0 | AD8: =FrequencyCount(W$8:W$1507,$Y8) -> 4 | AF8: 0 | AG8: =(Z8-Z$18+1)/(Z$19-Z$18+2) -> 0.4444444444 | AH8: =(AA8-AA$18+1)/(AA$19-AA$18+2) -> 0.8333333333 | AI8: =(AB8-AB$18+1)/(AB$19-AB$18+2) -> 0.1428571429 | AJ8: =(AC8-AC$18+1)/(AC$19-AC$18+2) -> 0.125 | AK8: =(AD8-AD$18+1)/(AD$19-AD$18+2) -> 0.5 | AM8: 0 | AN8: =1-AG8 -> 0.5555555556 | AO8: =1-AH8 -> 0.1666666667 | AP8: =1-AI8 -> 0.8571428571 | AQ8: =1-AJ8 -> 0.875 | AR8: =1-AK8 -> 0.5
A9: 2 | B9: 2015 | C9: 1 | D9: 2 | E9: 8 | F9: 8 | G9: 6 | H9: 7 | I9: 7 | K9: 1 | L9: 24 | M9: 12 | N9: 25 | O9: 10 | P9: 12 | R9: =IF(ISNUMBER(R8),IF(R8+1<=R$6,R8+1,""),"") -> 2 | S9: =IF(ISNUMBER($R9),DisimulateNexus($K$8:$K$17,L$8:L$17,S$3,S$4),"") -> 3 | T9: =IF(ISNUMBER($R9),DisimulateNexus($K$8:$K$17,M$8:M$17,T$3,T$4),"") -> 9 | U9: =IF(ISNUMBER($R9),DisimulateNexus($K$8:$K$17,N$8:N$17,U$3,U$4),"") -> 4 | V9: =IF(ISNUMBER($R9),DisimulateNexus($K$8:$K$17,O$8:O$17,V$3,V$4),"") -> 9 | W9: =IF(ISNUMBER($R9),DisimulateNexus($K$8:$K$17,P$8:P$17,W$3,W$4),"") -> 4 | Y9: 1 | Z9: 5 | AA9: 3 | AB9: 1 | AC9: 3 | AD9: 3 | AF9: 1 | AG9: 0.6666666667 | AH9: 0.5 | AI9: 0.1428571429 | AJ9: 0.5 | AK9: 0.4 | AM9: 1 | AN9: 0.3333333333 | AO9: 0.5 | AP9: 0.8571428571 | AQ9: 0.5 | AR9: 0.6
A10: 3 | B10: 2015 | C10: 1 | D10: 3 | E10: 8 | F10: 4 | G10: 1 | H10: 6 | I10: 7 | K10: 2 | L10: 16 | M10: 16 | N10: 7 | O10: 28 | P10: 17 | R10: 3 | S10: =IF(ISNUMBER($R10),DisimulateNexus($K$8:$K$17,L$8:L$17,S$3,S$4),"") -> 4 | T10: =IF(ISNUMBER($R10),DisimulateNexus($K$8:$K$17,M$8:M$17,T$3,T$4),"") -> 6 | U10: =IF(ISNUMBER($R10),DisimulateNexus($K$8:$K$17,N$8:N$17,U$3,U$4),"") -> 6 | V10: =IF(ISNUMBER($R10),DisimulateNexus($K$8:$K$17,O$8:O$17,V$3,V$4),"") -> 6 | W10: =IF(ISNUMBER($R10),DisimulateNexus($K$8:$K$17,P$8:P$17,W$3,W$4),"") -> 2 | Y10: 2 | Z10: 3 | AA10: 4 | AB10: 4 | AC10: 1 | AD10: 8 | AF10: 2 | AG10: 0.4444444444 | AH10: 0.6666666667 | AI10: 0.5714285714 | AJ10: 0.25 | AK10: 0.9 | AM10: 2 | AN10: 0.5555555556 | AO10: 0.3333333333 | AP10: 0.4285714286 | AQ10: 0.75 | AR10: 0.1
A11: 4 | B11: 2015 | C11: 1 | D11: 4 | E11: 4 | F11: 4 | G11: 7 | H11: 0 | I11: 9 | K11: 3 | L11: 15 | M11: 24 | N11: 23 | O11: 27 | P11: 9 | R11: 4 | S11: =IF(ISNUMBER($R11),DisimulateNexus($K$8:$K$17,L$8:L$17,S$3,S$4),"") -> 1 | T11: =IF(ISNUMBER($R11),DisimulateNexus($K$8:$K$17,M$8:M$17,T$3,T$4),"") -> 1 | U11: =IF(ISNUMBER($R11),DisimulateNexus($K$8:$K$17,N$8:N$17,U$3,U$4),"") -> 2 | V11: =IF(ISNUMBER($R11),DisimulateNexus($K$8:$K$17,O$8:O$17,V$3,V$4),"") -> 1 | W11: =IF(ISNUMBER($R11),DisimulateNexus($K$8:$K$17,P$8:P$17,W$3,W$4),"") -> 2 | Y11: 3 | Z11: 5 | AA11: 1 | AB11: 2 | AC11: 2 | AD11: 0 | AF11: 3 | AG11: 0.6666666667 | AH11: 0.1666666667 | AI11: 0.2857142857 | AJ11: 0.375 | AK11: 0.1 | AM11: 3 | AN11: 0.3333333333 | AO11: 0.8333333333 | AP11: 0.7142857143 | AQ11: 0.625 | AR11: 0.9
A12: 5 | B12: 2015 | C12: 1 | D12: 5 | E12: 0 | F12: 2 | G12: 3 | H12: 7 | I12: 9 | K12: 4 | L12: 17 | M12: 19 | N12: 14 | O12: 20 | P12: 26 | R12: 5 | S12: =IF(ISNUMBER($R12),DisimulateNexus($K$8:$K$17,L$8:L$17,S$3,S$4),"") -> 1 | T12: =IF(ISNUMBER($R12),DisimulateNexus($K$8:$K$17,M$8:M$17,T$3,T$4),"") -> 2 | U12: =IF(ISNUMBER($R12),DisimulateNexus($K$8:$K$17,N$8:N$17,U$3,U$4),"") -> 6 | V12: =IF(ISNUMBER($R12),DisimulateNexus($K$8:$K$17,O$8:O$17,V$3,V$4),"") -> 9 | W12: =IF(ISNUMBER($R12),DisimulateNexus($K$8:$K$17,P$8:P$17,W$3,W$4),"") -> 7 | Y12: 4 | Z12: 7 | AA12: 2 | AB12: 4 | AC12: 0 | AD12: 5 | AF12: 4 | AG12: 0.8888888889 | AH12: 0.3333333333 | AI12: 0.5714285714 | AJ12: 0.125 | AK12: 0.6 | AM12: 4 | AN12: 0.1111111111 | AO12: 0.6666666667 | AP12: 0.4285714286 | AQ12: 0.875 | AR12: 0.4
A13: 6 | B13: 2015 | C13: 1 | D13: 6 | E13: 8 | F13: 4 | G13: 9 | H13: 0 | I13: 1 | K13: 5 | L13: 11 | M13: 20 | N13: 22 | O13: 16 | P13: 18 | R13: 6 | S13: =IF(ISNUMBER($R13),DisimulateNexus($K$8:$K$17,L$8:L$17,S$3,S$4),"") -> 4 | T13: =IF(ISNUMBER($R13),DisimulateNexus($K$8:$K$17,M$8:M$17,T$3,T$4),"") -> 3 | U13: =IF(ISNUMBER($R13),DisimulateNexus($K$8:$K$17,N$8:N$17,U$3,U$4),"") -> 9 | V13: =IF(ISNUMBER($R13),DisimulateNexus($K$8:$K$17,O$8:O$17,V$3,V$4),"") -> 5 | W13: =IF(ISNUMBER($R13),DisimulateNexus($K$8:$K$17,P$8:P$17,W$3,W$4),"") -> 5 | Y13: 5 | Z13: 3 | AA13: 1 | AB13: 1 | AC13: 6 | AD13: 3 | AF13: 5 | AG13: 0.4444444444 | AH13: 0.1666666667 | AI13: 0.1428571429 | AJ13: 0.875 | AK13: 0.4 | AM13: 5 | AN13: 0.5555555556 | AO13: 0.8333333333 | AP13: 0.8571428571 | AQ13: 0.125 | AR13: 0.6
A14: 7 | B14: 2015 | C14: 1 | D14: 7 | E14: 5 | F14: 0 | G14: 3 | H14: 2 | I14: 4 | K14: 6 | L14: 29 | M14: 18 | N14: 21 | O14: 16 | P14: 17 | R14: 7 | S14: =IF(ISNUMBER($R14),DisimulateNexus($K$8:$K$17,L$8:L$17,S$3,S$4),"") -> 7 | T14: =IF(ISNUMBER($R14),DisimulateNexus($K$8:$K$17,M$8:M$17,T$3,T$4),"") -> 6 | U14: =IF(ISNUMBER($R14),DisimulateNexus($K$8:$K$17,N$8:N$17,U$3,U$4),"") -> 4 | V14: =IF(ISNUMBER($R14),DisimulateNexus($K$8:$K$17,O$8:O$17,V$3,V$4),"") -> 9 | W14: =IF(ISNUMBER($R14),DisimulateNexus($K$8:$K$17,P$8:P$17,W$3,W$4),"") -> 5 | Y14: 6 | Z14: 2 | AA14: 5 | AB14: 6 | AC14: 5 | AD14: 2 | AF14: 6 | AG14: 0.3333333333 | AH14: 0.8333333333 | AI14: 0.8571428571 | AJ14: 0.75 | AK14: 0.3 | AM14: 6 | AN14: 0.6666666667 | AO14: 0.1666666667 | AP14: 0.1428571429 | AQ14: 0.25 | AR14: 0.7
A15: 8 | B15: 2015 | C15: 1 | D15: 8 | E15: 0 | F15: 9 | G15: 1 | H15: 5 | I15: 7 | K15: 7 | L15: 20 | M15: 14 | N15: 20 | O15: 24 | P15: 22 | R15: 8 | S15: =IF(ISNUMBER($R15),DisimulateNexus($K$8:$K$17,L$8:L$17,S$3,S$4),"") -> 4 | T15: =IF(ISNUMBER($R15),DisimulateNexus($K$8:$K$17,M$8:M$17,T$3,T$4),"") -> 2 | U15: =IF(ISNUMBER($R15),DisimulateNexus($K$8:$K$17,N$8:N$17,U$3,U$4),"") -> 6 | V15: =IF(ISNUMBER($R15),DisimulateNexus($K$8:$K$17,O$8:O$17,V$3,V$4),"") -> 5 | W15: =IF(ISNUMBER($R15),DisimulateNexus($K$8:$K$17,P$8:P$17,W$3,W$4),"") -> 0 | Y15: 7 | Z15: 2 | AA15: 3 | AB15: 1 | AC15: 5 | AD15: 3 | AF15: 7 | AG15: 0.3333333333 | AH15: 0.5 | AI15: 0.1428571429 | AJ15: 0.75 | AK15: 0.4 | AM15: 7 | AN15: 0.6666666667 | AO15: 0.5 | AP15: 0.8571428571 | AQ15: 0.25 | AR15: 0.6
A16: 9 | B16: 2015 | C16: 1 | D16: 9 | E16: 1 | F16: 8 | G16: 4 | H16: 4 | I16: 5 | K16: 8 | L16: 19 | M16: 28 | N16: 17 | O16: 13 | P16: 17 | R16: 9 | S16: =IF(ISNUMBER($R16),DisimulateNexus($K$8:$K$17,L$8:L$17,S$3,S$4),"") -> 4 | T16: =IF(ISNUMBER($R16),DisimulateNexus($K$8:$K$17,M$8:M$17,T$3,T$4),"") -> 5 | U16: =IF(ISNUMBER($R16),DisimulateNexus($K$8:$K$17,N$8:N$17,U$3,U$4),"") -> 9 | V16: =IF(ISNUMBER($R16),DisimulateNexus($K$8:$K$17,O$8:O$17,V$3,V$4),"") -> 7 | W16: =IF(ISNUMBER($R16),DisimulateNexus($K$8:$K$17,P$8:P$17,W$3,W$4),"") -> 4 | Y16: 8 | Z16: 0 | AA16: 3 | AB16: 6 | AC16: 3 | AD16: 2 | AF16: 8 | AG16: 0.1111111111 | AH16: 0.5 | AI16: 0.8571428571 | AJ16: 0.5 | AK16: 0.3 | AM16: 8 | AN16: 0.8888888889 | AO16: 0.5 | AP16: 0.1428571429 | AQ16: 0.5 | AR16: 0.7
A17: 10 | B17: 2015 | C17: 1 | D17: 10 | E17: 6 | F17: 0 | G17: 8 | H17: 0 | I17: 2 | K17: 9 | L17: 14 | M17: 17 | N17: 20 | O17: 16 | P17: 27 | R17: 10 | S17: =IF(ISNUMBER($R17),DisimulateNexus($K$8:$K$17,L$8:L$17,S$3,S$4),"") -> 1 | T17: =IF(ISNUMBER($R17),DisimulateNexus($K$8:$K$17,M$8:M$17,T$3,T$4),"") -> 6 | U17: =IF(ISNUMBER($R17),DisimulateNexus($K$8:$K$17,N$8:N$17,U$3,U$4),"") -> 8 | V17: =IF(ISNUMBER($R17),DisimulateNexus($K$8:$K$17,O$8:O$17,V$3,V$4),"") -> 8 | W17: =IF(ISNUMBER($R17),DisimulateNexus($K$8:$K$17,P$8:P$17,W$3,W$4),"") -> 1 | Y17: 9 | Z17: 0 | AA17: 3 | AB17: 4 | AC17: 5 | AD17: 0 | AF17: 9 | AG17: 0.1111111111 | AH17: 0.5 | AI17: 0.5714285714 | AJ17: 0.75 | AK17: 0.1 | AM17: 9 | AN17: 0.8888888889 | AO17: 0.5 | AP17: 0.4285714286 | AQ17: 0.25 | AR17: 0.9
A18: 11 | B18: 2015 | C18: 1 | D18: 11 | E18: 2 | F18: 2 | G18: 4 | H18: 7 | I18: 4 | R18: 11 | S18: =IF(ISNUMBER($R18),DisimulateNexus($K$8:$K$17,L$8:L$17,S$3,S$4),"") -> 2 | T18: =IF(ISNUMBER($R18),DisimulateNexus($K$8:$K$17,M$8:M$17,T$3,T$4),"") -> 8 | U18: =IF(ISNUMBER($R18),DisimulateNexus($K$8:$K$17,N$8:N$17,U$3,U$4),"") -> 9 | V18: =IF(ISNUMBER($R18),DisimulateNexus($K$8:$K$17,O$8:O$17,V$3,V$4),"") -> 6 | W18: =IF(ISNUMBER($R18),DisimulateNexus($K$8:$K$17,P$8:P$17,W$3,W$4),"") -> 4 | Y18: Min | Z18: =MIN(Z8:Z17) -> 0 | AA18: =MIN(AA8:AA17) -> 1 | AB18: 1 | AC18: 0 | AD18: 0
A19: 12 | B19: 2015 | C19: 1 | D19: 12 | E19: 2 | F19: 3 | G19: 7 | H19: 5 | I19: 7 | R19: 12 | S19: =IF(ISNUMBER($R19),DisimulateNexus($K$8:$K$17,L$8:L$17,S$3,S$4),"") -> 5 | T19: =IF(ISNUMBER($R19),DisimulateNexus($K$8:$K$17,M$8:M$17,T$3,T$4),"") -> 4 | U19: =IF(ISNUMBER($R19),DisimulateNexus($K$8:$K$17,N$8:N$17,U$3,U$4),"") -> 2 | V19: =IF(ISNUMBER($R19),DisimulateNexus($K$8:$K$17,O$8:O$17,V$3,V$4),"") -> 2 | W19: =IF(ISNUMBER($R19),DisimulateNexus($K$8:$K$17,P$8:P$17,W$3,W$4),"") -> 2 | Y19: Max | Z19: =MAX(Z8:Z17) -> 7 | AA19: =MAX(AA8:AA17) -> 5 | AB19: 6 | AC19: 6 | AD19: =MAX(AD8:AD17) -> 8
A20: 13 | B20: 2015 | C20: 1 | D20: 13 | E20: 1 | F20: 8 | G20: 3 | H20: 5 | I20: 7 | R20: 13 | S20: =IF(ISNUMBER($R20),DisimulateNexus($K$8:$K$17,L$8:L$17,S$3,S$4),"") -> 1 | T20: =IF(ISNUMBER($R20),DisimulateNexus($K$8:$K$17,M$8:M$17,T$3,T$4),"") -> 9 | U20: =IF(ISNUMBER($R20),DisimulateNexus($K$8:$K$17,N$8:N$17,U$3,U$4),"") -> 2 | V20: =IF(ISNUMBER($R20),DisimulateNexus($K$8:$K$17,O$8:O$17,V$3,V$4),"") -> 9 | W20: =IF(ISNUMBER($R20),DisimulateNexus($K$8:$K$17,P$8:P$17,W$3,W$4),"") -> 6
A21: 14 | B21: 2015 | C21: 1 | D21: 14 | E21: 0 | F21: 7 | G21: 1 | H21: 2 | I21: 4 | R21: 14 | S21: =IF(ISNUMBER($R21),DisimulateNexus($K$8:$K$17,L$8:L$17,S$3,S$4),"") -> 0 | T21: =IF(ISNUMBER($R21),DisimulateNexus($K$8:$K$17,M$8:M$17,T$3,T$4),"") -> 9 | U21: =IF(ISNUMBER($R21),DisimulateNexus($K$8:$K$17,N$8:N$17,U$3,U$4),"") -> 7 | V21: =IF(ISNUMBER($R21),DisimulateNexus($K$8:$K$17,O$8:O$17,V$3,V$4),"") -> 6 | W21: =IF(ISNUMBER($R21),DisimulateNexus($K$8:$K$17,P$8:P$17,W$3,W$4),"") -> 8 | Z21: Distribution | AG21: Normalized | AN21: Inverted
A22: 15 | B22: 2015 | C22: 1 | D22: 15 | E22: 0 | F22: 9 | G22: 0 | H22: 2 | I22: 1 | R22: 15 | S22: =IF(ISNUMBER($R22),DisimulateNexus($K$8:$K$17,L$8:L$17,S$3,S$4),"") -> 0 | T22: =IF(ISNUMBER($R22),DisimulateNexus($K$8:$K$17,M$8:M$17,T$3,T$4),"") -> 8 | U22: =IF(ISNUMBER($R22),DisimulateNexus($K$8:$K$17,N$8:N$17,U$3,U$4),"") -> 6 | V22: =IF(ISNUMBER($R22),DisimulateNexus($K$8:$K$17,O$8:O$17,V$3,V$4),"") -> 7 | W22: =IF(ISNUMBER($R22),DisimulateNexus($K$8:$K$17,P$8:P$17,W$3,W$4),"") -> 5 | Z22: Folded | AG22: Folded | AN22: Folded
A23: 16 | B23: 2015 | C23: 1 | D23: 16 | E23: 1 | F23: 8 | G23: 6 | H23: 3 | I23: 0 | R23: 16 | S23: =IF(ISNUMBER($R23),DisimulateNexus($K$8:$K$17,L$8:L$17,S$3,S$4),"") -> 2 | T23: =IF(ISNUMBER($R23),DisimulateNexus($K$8:$K$17,M$8:M$17,T$3,T$4),"") -> 7 | U23: =IF(ISNUMBER($R23),DisimulateNexus($K$8:$K$17,N$8:N$17,U$3,U$4),"") -> 6 | V23: =IF(ISNUMBER($R23),DisimulateNexus($K$8:$K$17,O$8:O$17,V$3,V$4),"") -> 7 | W23: =IF(ISNUMBER($R23),DisimulateNexus($K$8:$K$17,P$8:P$17,W$3,W$4),"") -> 6 | Y23: Number | Z23: A | AA23: B | AB23: C | AC23: D | AD23: E | AF23: Number | AG23: A | AH23: B | AI23: C | AJ23: D | AK23: E | AM23: Number | AN23: A | AO23: B | AP23: C | AQ23: D | AR23: E
A24: 17 | B24: 2015 | C24: 1 | D24: 17 | E24: 2 | F24: 3 | G24: 4 | H24: 3 | I24: 3 | R24: 17 | S24: =IF(ISNUMBER($R24),DisimulateNexus($K$8:$K$17,L$8:L$17,S$3,S$4),"") -> 6 | T24: =IF(ISNUMBER($R24),DisimulateNexus($K$8:$K$17,M$8:M$17,T$3,T$4),"") -> 6 | U24: =IF(ISNUMBER($R24),DisimulateNexus($K$8:$K$17,N$8:N$17,U$3,U$4),"") -> 6 | V24: =IF(ISNUMBER($R24),DisimulateNexus($K$8:$K$17,O$8:O$17,V$3,V$4),"") -> 5 | W24: =IF(ISNUMBER($R24),DisimulateNexus($K$8:$K$17,P$8:P$17,W$3,W$4),"") -> 2 | Y24: 0 | Z24: =ABS((1/2)*(Z$19+Z$18)-Z8)+1 -> 1.5 | AA24: 3 | AB24: 3.5 | AC24: 4 | AD24: 1 | AF24: 0 | AG24: =(Z24-Z$34+1)/(Z$35-Z$34+2) -> 0.2 | AH24: =(AA24-AA$34+1)/(AA$35-AA$34+2) -> 0.75 | AI24: =(AB24-AB$34+1)/(AB$35-AB$34+2) -> 0.75 | AJ24: =(AC24-AC$34+1)/(AC$35-AC$34+2) -> 0.8 | AK24: =(AD24-AD$34+1)/(AD$35-AD$34+2) -> 0.1666666667 | AM24: 0 | AN24: =1-AG24 -> 0.8 | AO24: =1-AH24 -> 0.25 | AP24: =1-AI24 -> 0.25 | AQ24: =1-AJ24 -> 0.2 | AR24: =1-AK24 -> 0.8333333333
A25: 18 | B25: 2015 | C25: 1 | D25: 18 | E25: 1 | F25: 7 | G25: 6 | H25: 9 | I25: 1 | R25: 18 | S25: =IF(ISNUMBER($R25),DisimulateNexus($K$8:$K$17,L$8:L$17,S$3,S$4),"") -> 7 | T25: =IF(ISNUMBER($R25),DisimulateNexus($K$8:$K$17,M$8:M$17,T$3,T$4),"") -> 2 | U25: =IF(ISNUMBER($R25),DisimulateNexus($K$8:$K$17,N$8:N$17,U$3,U$4),"") -> 1 | V25: =IF(ISNUMBER($R25),DisimulateNexus($K$8:$K$17,O$8:O$17,V$3,V$4),"") -> 8 | W25: =IF(ISNUMBER($R25),DisimulateNexus($K$8:$K$17,P$8:P$17,W$3,W$4),"") -> 8 | Y25: 1 | Z25: 2.5 | AA25: 1 | AB25: 3.5 | AC25: 1 | AD25: 2 | AF25: 1 | AG25: 0.4 | AH25: 0.25 | AI25: 0.75 | AJ25: 0.2 | AK25: 0.3333333333 | AM25: 1 | AN25: 0.6 | AO25: 0.75 | AP25: 0.25 | AQ25: 0.8 | AR25: 0.6666666667
A26: 19 | B26: 2015 | C26: 1 | D26: 19 | E26: 8 | F26: 9 | G26: 0 | H26: 9 | I26: 8 | R26: 19 | S26: =IF(ISNUMBER($R26),DisimulateNexus($K$8:$K$17,L$8:L$17,S$3,S$4),"") -> 4 | T26: =IF(ISNUMBER($R26),DisimulateNexus($K$8:$K$17,M$8:M$17,T$3,T$4),"") -> 7 | U26: =IF(ISNUMBER($R26),DisimulateNexus($K$8:$K$17,N$8:N$17,U$3,U$4),"") -> 5 | V26: =IF(ISNUMBER($R26),DisimulateNexus($K$8:$K$17,O$8:O$17,V$3,V$4),"") -> 1 | W26: =IF(ISNUMBER($R26),DisimulateNexus($K$8:$K$17,P$8:P$17,W$3,W$4),"") -> 7 | Y26: 2 | Z26: 1.5 | AA26: 2 | AB26: 1.5 | AC26: 3 | AD26: 5 | AF26: 2 | AG26: 0.2 | AH26: 0.5 | AI26: 0.25 | AJ26: 0.6 | AK26: 0.8333333333 | AM26: 2 | AN26: 0.8 | AO26: 0.5 | AP26: 0.75 | AQ26: 0.4 | AR26: 0.1666666667
A27: 20 | B27: 2015 | C27: 1 | D27: 20 | E27: 4 | F27: 9 | G27: 6 | H27: 6 | I27: 1 | R27: 20 | S27: =IF(ISNUMBER($R27),DisimulateNexus($K$8:$K$17,L$8:L$17,S$3,S$4),"") -> 3 | T27: =IF(ISNUMBER($R27),DisimulateNexus($K$8:$K$17,M$8:M$17,T$3,T$4),"") -> 8 | U27: =IF(ISNUMBER($R27),DisimulateNexus($K$8:$K$17,N$8:N$17,U$3,U$4),"") -> 8 | V27: =IF(ISNUMBER($R27),DisimulateNexus($K$8:$K$17,O$8:O$17,V$3,V$4),"") -> 7 | W27: =IF(ISNUMBER($R27),DisimulateNexus($K$8:$K$17,P$8:P$17,W$3,W$4),"") -> 0 | Y27: 3 | Z27: 2.5 | AA27: 3 | AB27: 2.5 | AC27: 2 | AD27: 5 | AF27: 3 | AG27: 0.4 | AH27: 0.75 | AI27: 0.5 | AJ27: 0.4 | AK27: 0.8333333333 | AM27: 3 | AN27: 0.6 | AO27: 0.25 | AP27: 0.5 | AQ27: 0.6 | AR27: 0.1666666667
A28: 21 | B28: 2015 | C28: 1 | D28: 21 | E28: 9 | F28: 6 | G28: 8 | H28: 2 | I28: 1 | R28: 21 | S28: =IF(ISNUMBER($R28),DisimulateNexus($K$8:$K$17,L$8:L$17,S$3,S$4),"") -> 5 | T28: =IF(ISNUMBER($R28),DisimulateNexus($K$8:$K$17,M$8:M$17,T$3,T$4),"") -> 7 | U28: =IF(ISNUMBER($R28),DisimulateNexus($K$8:$K$17,N$8:N$17,U$3,U$4),"") -> 8 | V28: =IF(ISNUMBER($R28),DisimulateNexus($K$8:$K$17,O$8:O$17,V$3,V$4),"") -> 3 | W28: =IF(ISNUMBER($R28),DisimulateNexus($K$8:$K$17,P$8:P$17,W$3,W$4),"") -> 2 | Y28: 4 | Z28: 4.5 | AA28: 2 | AB28: 1.5 | AC28: 4 | AD28: 2 | AF28: 4 | AG28: 0.8 | AH28: 0.5 | AI28: 0.25 | AJ28: 0.8 | AK28: 0.3333333333 | AM28: 4 | AN28: 0.2 | AO28: 0.5 | AP28: 0.75 | AQ28: 0.2 | AR28: 0.6666666667
A29: 22 | B29: 2015 | C29: 1 | D29: 22 | E29: 3 | F29: 5 | G29: 7 | H29: 1 | I29: 2 | R29: 22 | S29: =IF(ISNUMBER($R29),DisimulateNexus($K$8:$K$17,L$8:L$17,S$3,S$4),"") -> 1 | T29: =IF(ISNUMBER($R29),DisimulateNexus($K$8:$K$17,M$8:M$17,T$3,T$4),"") -> 0 | U29: =IF(ISNUMBER($R29),DisimulateNexus($K$8:$K$17,N$8:N$17,U$3,U$4),"") -> 9 | V29: =IF(ISNUMBER($R29),DisimulateNexus($K$8:$K$17,O$8:O$17,V$3,V$4),"") -> 6 | W29: =IF(ISNUMBER($R29),DisimulateNexus($K$8:$K$17,P$8:P$17,W$3,W$4),"") -> 1 | Y29: 5 | Z29: 1.5 | AA29: 3 | AB29: 3.5 | AC29: 4 | AD29: 2 | AF29: 5 | AG29: 0.2 | AH29: 0.75 | AI29: 0.75 | AJ29: 0.8 | AK29: 0.3333333333 | AM29: 5 | AN29: 0.8 | AO29: 0.25 | AP29: 0.25 | AQ29: 0.2 | AR29: 0.6666666667
A30: 23 | B30: 2015 | C30: 1 | D30: 23 | E30: 0 | F30: 6 | G30: 1 | H30: 1 | I30: 2 | R30: 23 | S30: =IF(ISNUMBER($R30),DisimulateNexus($K$8:$K$17,L$8:L$17,S$3,S$4),"") -> 6 | T30: =IF(ISNUMBER($R30),DisimulateNexus($K$8:$K$17,M$8:M$17,T$3,T$4),"") -> 2 | U30: =IF(ISNUMBER($R30),DisimulateNexus($K$8:$K$17,N$8:N$17,U$3,U$4),"") -> 3 | V30: =IF(ISNUMBER($R30),DisimulateNexus($K$8:$K$17,O$8:O$17,V$3,V$4),"") -> 1 | W30: =IF(ISNUMBER($R30),DisimulateNexus($K$8:$K$17,P$8:P$17,W$3,W$4),"") -> 2 | Y30: 6 | Z30: 2.5 | AA30: 3 | AB30: 3.5 | AC30: 3 | AD30: 3 | AF30: 6 | AG30: 0.4 | AH30: 0.75 | AI30: 0.75 | AJ30: 0.6 | AK30: 0.5 | AM30: 6 | AN30: 0.6 | AO30: 0.25 | AP30: 0.25 | AQ30: 0.4 | AR30: 0.5
A31: 24 | B31: 2015 | C31: 1 | D31: 24 | E31: 7 | F31: 6 | G31: 1 | H31: 3 | I31: 7 | R31: 24 | S31: =IF(ISNUMBER($R31),DisimulateNexus($K$8:$K$17,L$8:L$17,S$3,S$4),"") -> 3 | T31: =IF(ISNUMBER($R31),DisimulateNexus($K$8:$K$17,M$8:M$17,T$3,T$4),"") -> 0 | U31: =IF(ISNUMBER($R31),DisimulateNexus($K$8:$K$17,N$8:N$17,U$3,U$4),"") -> 4 | V31: =IF(ISNUMBER($R31),DisimulateNexus($K$8:$K$17,O$8:O$17,V$3,V$4),"") -> 5 | W31: =IF(ISNUMBER($R31),DisimulateNexus($K$8:$K$17,P$8:P$17,W$3,W$4),"") -> 2 | Y31: 7 | Z31: 2.5 | AA31: 1 | AB31: 3.5 | AC31: 3 | AD31: 2 | AF31: 7 | AG31: 0.4 | AH31: 0.25 | AI31: 0.75 | AJ31: 0.6 | AK31: 0.3333333333 | AM31: 7 | AN31: 0.6 | AO31: 0.75 | AP31: 0.25 | AQ31: 0.4 | AR31: 0.6666666667
A32: 25 | B32: 2015 | C32: 1 | D32: 25 | E32: 9 | F32: 2 | G32: 4 | H32: 0 | I32: 4 | R32: 25 | S32: =IF(ISNUMBER($R32),DisimulateNexus($K$8:$K$17,L$8:L$17,S$3,S$4),"") -> 0 | T32: =IF(ISNUMBER($R32),DisimulateNexus($K$8:$K$17,M$8:M$17,T$3,T$4),"") -> 0 | U32: =IF(ISNUMBER($R32),DisimulateNexus($K$8:$K$17,N$8:N$17,U$3,U$4),"") -> 4 | V32: =IF(ISNUMBER($R32),DisimulateNexus($K$8:$K$17,O$8:O$17,V$3,V$4),"") -> 8 | W32: =IF(ISNUMBER($R32),DisimulateNexus($K$8:$K$17,P$8:P$17,W$3,W$4),"") -> 0 | Y32: 8 | Z32: 4.5 | AA32: 1 | AB32: 3.5 | AC32: 1 | AD32: 3 | AF32: 8 | AG32: 0.8 | AH32: 0.25 | AI32: 0.75 | AJ32: 0.2 | AK32: 0.5 | AM32: 8 | AN32: 0.2 | AO32: 0.75 | AP32: 0.25 | AQ32: 0.8 | AR32: 0.5
A33: 26 | B33: 2015 | C33: 1 | D33: 26 | E33: 6 | F33: 1 | G33: 7 | H33: 7 | I33: 9 | R33: 26 | S33: =IF(ISNUMBER($R33),DisimulateNexus($K$8:$K$17,L$8:L$17,S$3,S$4),"") -> 5 | T33: =IF(ISNUMBER($R33),DisimulateNexus($K$8:$K$17,M$8:M$17,T$3,T$4),"") -> 6 | U33: =IF(ISNUMBER($R33),DisimulateNexus($K$8:$K$17,N$8:N$17,U$3,U$4),"") -> 8 | V33: =IF(ISNUMBER($R33),DisimulateNexus($K$8:$K$17,O$8:O$17,V$3,V$4),"") -> 5 | W33: =IF(ISNUMBER($R33),DisimulateNexus($K$8:$K$17,P$8:P$17,W$3,W$4),"") -> 4 | Y33: 9 | Z33: 4.5 | AA33: 1 | AB33: 1.5 | AC33: 3 | AD33: 5 | AF33: 9 | AG33: 0.8 | AH33: 0.25 | AI33: 0.25 | AJ33: 0.6 | AK33: 0.8333333333 | AM33: 9 | AN33: 0.2 | AO33: 0.75 | AP33: 0.75 | AQ33: 0.4 | AR33: 0.1666666667
A34: 27 | B34: 2015 | C34: 1 | D34: 27 | E34: 1 | F34: 5 | G34: 5 | H34: 3 | I34: 2 | R34: 27 | S34: =IF(ISNUMBER($R34),DisimulateNexus($K$8:$K$17,L$8:L$17,S$3,S$4),"") -> 4 | T34: =IF(ISNUMBER($R34),DisimulateNexus($K$8:$K$17,M$8:M$17,T$3,T$4),"") -> 1 | U34: =IF(ISNUMBER($R34),DisimulateNexus($K$8:$K$17,N$8:N$17,U$3,U$4),"") -> 0 | V34: =IF(ISNUMBER($R34),DisimulateNexus($K$8:$K$17,O$8:O$17,V$3,V$4),"") -> 7 | W34: =IF(ISNUMBER($R34),DisimulateNexus($K$8:$K$17,P$8:P$17,W$3,W$4),"") -> 4 | Y34: Min | Z34: =MIN(Z24:Z33) -> 1.5 | AA34: =MIN(AA24:AA33) -> 1 | AB34: 1.5 | AC34: 1 | AD34: 1
A35: 28 | B35: 2015 | C35: 1 | D35: 28 | E35: 4 | F35: 3 | G35: 1 | H35: 8 | I35: 9 | R35: 28 | S35: =IF(ISNUMBER($R35),DisimulateNexus($K$8:$K$17,L$8:L$17,S$3,S$4),"") -> 3 | T35: =IF(ISNUMBER($R35),DisimulateNexus($K$8:$K$17,M$8:M$17,T$3,T$4),"") -> 4 | U35: =IF(ISNUMBER($R35),DisimulateNexus($K$8:$K$17,N$8:N$17,U$3,U$4),"") -> 2 | V35: =IF(ISNUMBER($R35),DisimulateNexus($K$8:$K$17,O$8:O$17,V$3,V$4),"") -> 3 | W35: =IF(ISNUMBER($R35),DisimulateNexus($K$8:$K$17,P$8:P$17,W$3,W$4),"") -> 0 | Y35: Max | Z35: =MAX(Z24:Z33) -> 4.5 | AA35: =MAX(AA24:AA33) -> 3 | AB35: 3.5 | AC35: 4 | AD35: =MAX(AD24:AD33) -> 5
A36: 29 | B36: 2015 | C36: 1 | D36: 29 | E36: 1 | F36: 6 | G36: 7 | H36: 7 | I36: 9 | R36: 29 | S36: =IF(ISNUMBER($R36),DisimulateNexus($K$8:$K$17,L$8:L$17,S$3,S$4),"") -> 4 | T36: =IF(ISNUMBER($R36),DisimulateNexus($K$8:$K$17,M$8:M$17,T$3,T$4),"") -> 0 | U36: =IF(ISNUMBER($R36),DisimulateNexus($K$8:$K$17,N$8:N$17,U$3,U$4),"") -> 3 | V36: =IF(ISNUMBER($R36),DisimulateNexus($K$8:$K$17,O$8:O$17,V$3,V$4),"") -> 6 | W36: =IF(ISNUMBER($R36),DisimulateNexus($K$8:$K$17,P$8:P$17,W$3,W$4),"") -> 1
A37: 30 | B37: 2015 | C37: 1 | D37: 30 | E37: 2 | F37: 3 | G37: 5 | H37: 4 | I37: 8 | R37: 30 | S37: =IF(ISNUMBER($R37),DisimulateNexus($K$8:$K$17,L$8:L$17,S$3,S$4),"") -> 3 | T37: =IF(ISNUMBER($R37),DisimulateNexus($K$8:$K$17,M$8:M$17,T$3,T$4),"") -> 1 | U37: =IF(ISNUMBER($R37),DisimulateNexus($K$8:$K$17,N$8:N$17,U$3,U$4),"") -> 8 | V37: =IF(ISNUMBER($R37),DisimulateNexus($K$8:$K$17,O$8:O$17,V$3,V$4),"") -> 9 | W37: =IF(ISNUMBER($R37),DisimulateNexus($K$8:$K$17,P$8:P$17,W$3,W$4),"") -> 7
A38: 31 | B38: 2015 | C38: 1 | D38: 31 | E38: 6 | F38: 9 | G38: 8 | H38: 3 | I38: 0 | S38: =IF(ISNUMBER($R38),DisimulateNexus($K$8:$K$17,L$8:L$17,S$3,S$4),"") ->  | T38: =IF(ISNUMBER($R38),DisimulateNexus($K$8:$K$17,M$8:M$17,T$3,T$4),"") ->  | U38: =IF(ISNUMBER($R38),DisimulateNexus($K$8:$K$17,N$8:N$17,U$3,U$4),"") ->  | V38: =IF(ISNUMBER($R38),DisimulateNexus($K$8:$K$17,O$8:O$17,V$3,V$4),"") ->  | W38: =IF(ISNUMBER($R38),DisimulateNexus($K$8:$K$17,P$8:P$17,W$3,W$4),"") -> 
A39: 32 | B39: 2015 | C39: 2 | D39: 1 | E39: 6 | F39: 1 | G39: 0 | H39: 8 | I39: 0 | S39: =IF(ISNUMBER($R39),DisimulateNexus($K$8:$K$17,L$8:L$17,S$3,S$4),"") ->  | T39: =IF(ISNUMBER($R39),DisimulateNexus($K$8:$K$17,M$8:M$17,T$3,T$4),"") ->  | U39: =IF(ISNUMBER($R39),DisimulateNexus($K$8:$K$17,N$8:N$17,U$3,U$4),"") ->  | V39: =IF(ISNUMBER($R39),DisimulateNexus($K$8:$K$17,O$8:O$17,V$3,V$4),"") ->  | W39: =IF(ISNUMBER($R39),DisimulateNexus($K$8:$K$17,P$8:P$17,W$3,W$4),"") -> 
A40: 33 | B40: 2015 | C40: 2 | D40: 2 | E40: 9 | F40: 0 | G40: 9 | H40: 9 | I40: 5 | S40: =IF(ISNUMBER($R40),DisimulateNexus($K$8:$K$17,L$8:L$17,S$3,S$4),"") ->  | T40: =IF(ISNUMBER($R40),DisimulateNexus($K$8:$K$17,M$8:M$17,T$3,T$4),"") ->  | U40: =IF(ISNUMBER($R40),DisimulateNexus($K$8:$K$17,N$8:N$17,U$3,U$4),"") ->  | V40: =IF(ISNUMBER($R40),DisimulateNexus($K$8:$K$17,O$8:O$17,V$3,V$4),"") ->  | W40: =IF(ISNUMBER($R40),DisimulateNexus($K$8:$K$17,P$8:P$17,W$3,W$4),"") -> 
A41: 34 | B41: 2015 | C41: 2 | D41: 3 | E41: 8 | F41: 1 | G41: 5 | H41: 4 | I41: 9 | S41: =IF(ISNUMBER($R41),DisimulateNexus($K$8:$K$17,L$8:L$17,S$3,S$4),"") ->  | T41: =IF(ISNUMBER($R41),DisimulateNexus($K$8:$K$17,M$8:M$17,T$3,T$4),"") ->  | U41: =IF(ISNUMBER($R41),DisimulateNexus($K$8:$K$17,N$8:N$17,U$3,U$4),"") ->  | V41: =IF(ISNUMBER($R41),DisimulateNexus($K$8:$K$17,O$8:O$17,V$3,V$4),"") ->  | W41: =IF(ISNUMBER($R41),DisimulateNexus($K$8:$K$17,P$8:P$17,W$3,W$4),"") -> 
A42: 35 | B42: 2015 | C42: 2 | D42: 4 | E42: 5 | F42: 7 | G42: 8 | H42: 2 | I42: 8 | S42: =IF(ISNUMBER($R42),DisimulateNexus($K$8:$K$17,L$8:L$17,S$3,S$4),"") ->  | T42: =IF(ISNUMBER($R42),DisimulateNexus($K$8:$K$17,M$8:M$17,T$3,T$4),"") ->  | U42: =IF(ISNUMBER($R42),DisimulateNexus($K$8:$K$17,N$8:N$17,U$3,U$4),"") ->  | V42: =IF(ISNUMBER($R42),DisimulateNexus($K$8:$K$17,O$8:O$17,V$3,V$4),"") ->  | W42: =IF(ISNUMBER($R42),DisimulateNexus($K$8:$K$17,P$8:P$17,W$3,W$4),"") -> 
A43: 36 | B43: 2015 | C43: 2 | D43: 5 | E43: 3 | F43: 5 | G43: 3 | H43: 7 | I43: 3 | S43: =IF(ISNUMBER($R43),DisimulateNexus($K$8:$K$17,L$8:L$17,S$3,S$4),"") ->  | T43: =IF(ISNUMBER($R43),DisimulateNexus($K$8:$K$17,M$8:M$17,T$3,T$4),"") ->  | U43: =IF(ISNUMBER($R43),DisimulateNexus($K$8:$K$17,N$8:N$17,U$3,U$4),"") ->  | V43: =IF(ISNUMBER($R43),DisimulateNexus($K$8:$K$17,O$8:O$17,V$3,V$4),"") ->  | W43: =IF(ISNUMBER($R43),DisimulateNexus($K$8:$K$17,P$8:P$17,W$3,W$4),"") -> 
A44: 37 | B44: 2015 | C44: 2 | D44: 6 | E44: 4 | F44: 5 | G44: 1 | H44: 6 | I44: 2 | S44: =IF(ISNUMBER($R44),DisimulateNexus($K$8:$K$17,L$8:L$17,S$3,S$4),"") ->  | T44: =IF(ISNUMBER($R44),DisimulateNexus($K$8:$K$17,M$8:M$17,T$3,T$4),"") ->  | U44: =IF(ISNUMBER($R44),DisimulateNexus($K$8:$K$17,N$8:N$17,U$3,U$4),"") ->  | V44: =IF(ISNUMBER($R44),DisimulateNexus($K$8:$K$17,O$8:O$17,V$3,V$4),"") ->  | W44: =IF(ISNUMBER($R44),DisimulateNexus($K$8:$K$17,P$8:P$17,W$3,W$4),"") -> 
A45: 38 | B45: 2015 | C45: 2 | D45: 7 | E45: 4 | F45: 8 | G45: 2 | H45: 7 | I45: 8 | S45: =IF(ISNUMBER($R45),DisimulateNexus($K$8:$K$17,L$8:L$17,S$3,S$4),"") ->  | T45: =IF(ISNUMBER($R45),DisimulateNexus($K$8:$K$17,M$8:M$17,T$3,T$4),"") ->  | U45: =IF(ISNUMBER($R45),DisimulateNexus($K$8:$K$17,N$8:N$17,U$3,U$4),"") ->  | V45: =IF(ISNUMBER($R45),DisimulateNexus($K$8:$K$17,O$8:O$17,V$3,V$4),"") ->  | W45: =IF(ISNUMBER($R45),DisimulateNexus($K$8:$K$17,P$8:P$17,W$3,W$4),"") -> 
A46: 39 | B46: 2015 | C46: 2 | D46: 8 | E46: 2 | F46: 1 | G46: 8 | H46: 3 | I46: 9 | S46: =IF(ISNUMBER($R46),DisimulateNexus($K$8:$K$17,L$8:L$17,S$3,S$4),"") ->  | T46: =IF(ISNUMBER($R46),DisimulateNexus($K$8:$K$17,M$8:M$17,T$3,T$4),"") ->  | U46: =IF(ISNUMBER($R46),DisimulateNexus($K$8:$K$17,N$8:N$17,U$3,U$4),"") ->  | V46: =IF(ISNUMBER($R46),DisimulateNexus($K$8:$K$17,O$8:O$17,V$3,V$4),"") ->  | W46: =IF(ISNUMBER($R46),DisimulateNexus($K$8:$K$17,P$8:P$17,W$3,W$4),"") -> 
A47: 40 | B47: 2015 | C47: 2 | D47: 9 | E47: 8 | F47: 5 | G47: 6 | H47: 1 | I47: 2 | S47: =IF(ISNUMBER($R47),DisimulateNexus($K$8:$K$17,L$8:L$17,S$3,S$4),"") ->  | T47: =IF(ISNUMBER($R47),DisimulateNexus($K$8:$K$17,M$8:M$17,T$3,T$4),"") ->  | U47: =IF(ISNUMBER($R47),DisimulateNexus($K$8:$K$17,N$8:N$17,U$3,U$4),"") ->  | V47: =IF(ISNUMBER($R47),DisimulateNexus($K$8:$K$17,O$8:O$17,V$3,V$4),"") ->  | W47: =IF(ISNUMBER($R47),DisimulateNexus($K$8:$K$17,P$8:P$17,W$3,W$4),"") -> 
A48: 41 | B48: 2015 | C48: 2 | D48: 10 | E48: 0 | F48: 0 | G48: 7 | H48: 2 | I48: 2 | S48: =IF(ISNUMBER($R48),DisimulateNexus($K$8:$K$17,L$8:L$17,S$3,S$4),"") ->  | T48: =IF(ISNUMBER($R48),DisimulateNexus($K$8:$K$17,M$8:M$17,T$3,T$4),"") ->  | U48: =IF(ISNUMBER($R48),DisimulateNexus($K$8:$K$17,N$8:N$17,U$3,U$4),"") ->  | V48: =IF(ISNUMBER($R48),DisimulateNexus($K$8:$K$17,O$8:O$17,V$3,V$4),"") ->  | W48: =IF(ISNUMBER($R48),DisimulateNexus($K$8:$K$17,P$8:P$17,W$3,W$4),"") -> 
A49: 42 | B49: 2015 | C49: 2 | D49: 11 | E49: 2 | F49: 1 | G49: 6 | H49: 2 | I49: 9 | S49: =IF(ISNUMBER($R49),DisimulateNexus($K$8:$K$17,L$8:L$17,S$3,S$4),"") ->  | T49: =IF(ISNUMBER($R49),DisimulateNexus($K$8:$K$17,M$8:M$17,T$3,T$4),"") ->  | U49: =IF(ISNUMBER($R49),DisimulateNexus($K$8:$K$17,N$8:N$17,U$3,U$4),"") ->  | V49: =IF(ISNUMBER($R49),DisimulateNexus($K$8:$K$17,O$8:O$17,V$3,V$4),"") ->  | W49: =IF(ISNUMBER($R49),DisimulateNexus($K$8:$K$17,P$8:P$17,W$3,W$4),"") -> 
A50: 43 | B50: 2015 | C50: 2 | D50: 12 | E50: 2 | F50: 8 | G50: 3 | H50: 5 | I50: 4 | S50: =IF(ISNUMBER($R50),DisimulateNexus($K$8:$K$17,L$8:L$17,S$3,S$4),"") ->  | T50: =IF(ISNUMBER($R50),DisimulateNexus($K$8:$K$17,M$8:M$17,T$3,T$4),"") ->  | U50: =IF(ISNUMBER($R50),DisimulateNexus($K$8:$K$17,N$8:N$17,U$3,U$4),"") ->  | V50: =IF(ISNUMBER($R50),DisimulateNexus($K$8:$K$17,O$8:O$17,V$3,V$4),"") ->  | W50: =IF(ISNUMBER($R50),DisimulateNexus($K$8:$K$17,P$8:P$17,W$3,W$4),"") -> 
A51: 44 | B51: 2015 | C51: 2 | D51: 13 | E51: 5 | F51: 5 | G51: 5 | H51: 4 | I51: 4 | S51: =IF(ISNUMBER($R51),DisimulateNexus($K$8:$K$17,L$8:L$17,S$3,S$4),"") ->  | T51: =IF(ISNUMBER($R51),DisimulateNexus($K$8:$K$17,M$8:M$17,T$3,T$4),"") ->  | U51: =IF(ISNUMBER($R51),DisimulateNexus($K$8:$K$17,N$8:N$17,U$3,U$4),"") ->  | V51: =IF(ISNUMBER($R51),DisimulateNexus($K$8:$K$17,O$8:O$17,V$3,V$4),"") ->  | W51: =IF(ISNUMBER($R51),DisimulateNexus($K$8:$K$17,P$8:P$17,W$3,W$4),"") -> 
A52: 45 | B52: 2015 | C52: 2 | D52: 14 | E52: 7 | F52: 8 | G52: 4 | H52: 5 | I52: 4 | S52: =IF(ISNUMBER($R52),DisimulateNexus($K$8:$K$17,L$8:L$17,S$3,S$4),"") ->  | T52: =IF(ISNUMBER($R52),DisimulateNexus($K$8:$K$17,M$8:M$17,T$3,T$4),"") ->  | U52: =IF(ISNUMBER($R52),DisimulateNexus($K$8:$K$17,N$8:N$17,U$3,U$4),"") ->  | V52: =IF(ISNUMBER($R52),DisimulateNexus($K$8:$K$17,O$8:O$17,V$3,V$4),"") ->  | W52: =IF(ISNUMBER($R52),DisimulateNexus($K$8:$K$17,P$8:P$17,W$3,W$4),"") -> 
A53: 46 | B53: 2015 | C53: 2 | D53: 15 | E53: 9 | F53: 9 | G53: 9 | H53: 6 | I53: 5 | S53: =IF(ISNUMBER($R53),DisimulateNexus($K$8:$K$17,L$8:L$17,S$3,S$4),"") ->  | T53: =IF(ISNUMBER($R53),DisimulateNexus($K$8:$K$17,M$8:M$17,T$3,T$4),"") ->  | U53: =IF(ISNUMBER($R53),DisimulateNexus($K$8:$K$17,N$8:N$17,U$3,U$4),"") ->  | V53: =IF(ISNUMBER($R53),DisimulateNexus($K$8:$K$17,O$8:O$17,V$3,V$4),"") ->  | W53: =IF(ISNUMBER($R53),DisimulateNexus($K$8:$K$17,P$8:P$17,W$3,W$4),"") -> 
A54: 47 | B54: 2015 | C54: 2 | D54: 16 | E54: 3 | F54: 2 | G54: 8 | H54: 3 | I54: 5 | S54: =IF(ISNUMBER($R54),DisimulateNexus($K$8:$K$17,L$8:L$17,S$3,S$4),"") ->  | T54: =IF(ISNUMBER($R54),DisimulateNexus($K$8:$K$17,M$8:M$17,T$3,T$4),"") ->  | U54: =IF(ISNUMBER($R54),DisimulateNexus($K$8:$K$17,N$8:N$17,U$3,U$4),"") ->  | V54: =IF(ISNUMBER($R54),DisimulateNexus($K$8:$K$17,O$8:O$17,V$3,V$4),"") ->  | W54: =IF(ISNUMBER($R54),DisimulateNexus($K$8:$K$17,P$8:P$17,W$3,W$4),"") -> 
A55: 48 | B55: 2015 | C55: 2 | D55: 17 | E55: 5 | F55: 4 | G55: 0 | H55: 5 | I55: 4 | S55: =IF(ISNUMBER($R55),DisimulateNexus($K$8:$K$17,L$8:L$17,S$3,S$4),"") ->  | T55: =IF(ISNUMBER($R55),DisimulateNexus($K$8:$K$17,M$8:M$17,T$3,T$4),"") ->  | U55: =IF(ISNUMBER($R55),DisimulateNexus($K$8:$K$17,N$8:N$17,U$3,U$4),"") ->  | V55: =IF(ISNUMBER($R55),DisimulateNexus($K$8:$K$17,O$8:O$17,V$3,V$4),"") ->  | W55: =IF(ISNUMBER($R55),DisimulateNexus($K$8:$K$17,P$8:P$17,W$3,W$4),"") -> 
A56: 49 | B56: 2015 | C56: 2 | D56: 18 | E56: 7 | F56: 9 | G56: 8 | H56: 3 | I56: 9 | S56: =IF(ISNUMBER($R56),DisimulateNexus($K$8:$K$17,L$8:L$17,S$3,S$4),"") ->  | T56: =IF(ISNUMBER($R56),DisimulateNexus($K$8:$K$17,M$8:M$17,T$3,T$4),"") ->  | U56: =IF(ISNUMBER($R56),DisimulateNexus($K$8:$K$17,N$8:N$17,U$3,U$4),"") ->  | V56: =IF(ISNUMBER($R56),DisimulateNexus($K$8:$K$17,O$8:O$17,V$3,V$4),"") ->  | W56: =IF(ISNUMBER($R56),DisimulateNexus($K$8:$K$17,P$8:P$17,W$3,W$4),"") -> 
A57: 50 | B57: 2015 | C57: 2 | D57: 19 | E57: 2 | F57: 0 | G57: 5 | H57: 0 | I57: 7 | S57: =IF(ISNUMBER($R57),DisimulateNexus($K$8:$K$17,L$8:L$17,S$3,S$4),"") ->  | T57: =IF(ISNUMBER($R57),DisimulateNexus($K$8:$K$17,M$8:M$17,T$3,T$4),"") ->  | U57: =IF(ISNUMBER($R57),DisimulateNexus($K$8:$K$17,N$8:N$17,U$3,U$4),"") ->  | V57: =IF(ISNUMBER($R57),DisimulateNexus($K$8:$K$17,O$8:O$17,V$3,V$4),"") ->  | W57: =IF(ISNUMBER($R57),DisimulateNexus($K$8:$K$17,P$8:P$17,W$3,W$4),"") -> 
A58: 51 | B58: 2015 | C58: 2 | D58: 20 | E58: 7 | F58: 6 | G58: 1 | H58: 8 | I58: 7 | S58: =IF(ISNUMBER($R58),DisimulateNexus($K$8:$K$17,L$8:L$17,S$3,S$4),"") ->  | T58: =IF(ISNUMBER($R58),DisimulateNexus($K$8:$K$17,M$8:M$17,T$3,T$4),"") ->  | U58: =IF(ISNUMBER($R58),DisimulateNexus($K$8:$K$17,N$8:N$17,U$3,U$4),"") ->  | V58: =IF(ISNUMBER($R58),DisimulateNexus($K$8:$K$17,O$8:O$17,V$3,V$4),"") ->  | W58: =IF(ISNUMBER($R58),DisimulateNexus($K$8:$K$17,P$8:P$17,W$3,W$4),"") -> 
A59: 52 | B59: 2015 | C59: 2 | D59: 21 | E59: 1 | F59: 3 | G59: 7 | H59: 2 | I59: 7 | S59: =IF(ISNUMBER($R59),DisimulateNexus($K$8:$K$17,L$8:L$17,S$3,S$4),"") ->  | T59: =IF(ISNUMBER($R59),DisimulateNexus($K$8:$K$17,M$8:M$17,T$3,T$4),"") ->  | U59: =IF(ISNUMBER($R59),DisimulateNexus($K$8:$K$17,N$8:N$17,U$3,U$4),"") ->  | V59: =IF(ISNUMBER($R59),DisimulateNexus($K$8:$K$17,O$8:O$17,V$3,V$4),"") ->  | W59: =IF(ISNUMBER($R59),DisimulateNexus($K$8:$K$17,P$8:P$17,W$3,W$4),"") -> 
A60: 53 | B60: 2015 | C60: 2 | D60: 22 | E60: 6 | F60: 4 | G60: 2 | H60: 8 | I60: 6 | S60: =IF(ISNUMBER($R60),DisimulateNexus($K$8:$K$17,L$8:L$17,S$3,S$4),"") ->  | T60: =IF(ISNUMBER($R60),DisimulateNexus($K$8:$K$17,M$8:M$17,T$3,T$4),"") ->  | U60: =IF(ISNUMBER($R60),DisimulateNexus($K$8:$K$17,N$8:N$17,U$3,U$4),"") ->  | V60: =IF(ISNUMBER($R60),DisimulateNexus($K$8:$K$17,O$8:O$17,V$3,V$4),"") ->  | W60: =IF(ISNUMBER($R60),DisimulateNexus($K$8:$K$17,P$8:P$17,W$3,W$4),"") -> 
A61: 54 | B61: 2015 | C61: 2 | D61: 23 | E61: 4 | F61: 3 | G61: 1 | H61: 3 | I61: 0 | S61: =IF(ISNUMBER($R61),DisimulateNexus($K$8:$K$17,L$8:L$17,S$3,S$4),"") ->  | T61: =IF(ISNUMBER($R61),DisimulateNexus($K$8:$K$17,M$8:M$17,T$3,T$4),"") ->  | U61: =IF(ISNUMBER($R61),DisimulateNexus($K$8:$K$17,N$8:N$17,U$3,U$4),"") ->  | V61: =IF(ISNUMBER($R61),DisimulateNexus($K$8:$K$17,O$8:O$17,V$3,V$4),"") ->  | W61: =IF(ISNUMBER($R61),DisimulateNexus($K$8:$K$17,P$8:P$17,W$3,W$4),"") -> 
A62: 55 | B62: 2015 | C62: 2 | D62: 24 | E62: 8 | F62: 6 | G62: 8 | H62: 3 | I62: 9 | S62: =IF(ISNUMBER($R62),DisimulateNexus($K$8:$K$17,L$8:L$17,S$3,S$4),"") ->  | T62: =IF(ISNUMBER($R62),DisimulateNexus($K$8:$K$17,M$8:M$17,T$3,T$4),"") ->  | U62: =IF(ISNUMBER($R62),DisimulateNexus($K$8:$K$17,N$8:N$17,U$3,U$4),"") ->  | V62: =IF(ISNUMBER($R62),DisimulateNexus($K$8:$K$17,O$8:O$17,V$3,V$4),"") ->  | W62: =IF(ISNUMBER($R62),DisimulateNexus($K$8:$K$17,P$8:P$17,W$3,W$4),"") -> 
A63: 56 | B63: 2015 | C63: 2 | D63: 25 | E63: 6 | F63: 8 | G63: 7 | H63: 0 | I63: 0 | S63: =IF(ISNUMBER($R63),DisimulateNexus($K$8:$K$17,L$8:L$17,S$3,S$4),"") ->  | T63: =IF(ISNUMBER($R63),DisimulateNexus($K$8:$K$17,M$8:M$17,T$3,T$4),"") ->  | U63: =IF(ISNUMBER($R63),DisimulateNexus($K$8:$K$17,N$8:N$17,U$3,U$4),"") ->  | V63: =IF(ISNUMBER($R63),DisimulateNexus($K$8:$K$17,O$8:O$17,V$3,V$4),"") ->  | W63: =IF(ISNUMBER($R63),DisimulateNexus($K$8:$K$17,P$8:P$17,W$3,W$4),"") -> 
A64: 57 | B64: 2015 | C64: 2 | D64: 26 | E64: 7 | F64: 9 | G64: 3 | H64: 9 | I64: 3 | S64: =IF(ISNUMBER($R64),DisimulateNexus($K$8:$K$17,L$8:L$17,S$3,S$4),"") ->  | T64: =IF(ISNUMBER($R64),DisimulateNexus($K$8:$K$17,M$8:M$17,T$3,T$4),"") ->  | U64: =IF(ISNUMBER($R64),DisimulateNexus($K$8:$K$17,N$8:N$17,U$3,U$4),"") ->  | V64: =IF(ISNUMBER($R64),DisimulateNexus($K$8:$K$17,O$8:O$17,V$3,V$4),"") ->  | W64: =IF(ISNUMBER($R64),DisimulateNexus($K$8:$K$17,P$8:P$17,W$3,W$4),"") -> 
A65: 58 | B65: 2015 | C65: 2 | D65: 27 | E65: 3 | F65: 4 | G65: 7 | H65: 9 | I65: 0 | S65: =IF(ISNUMBER($R65),DisimulateNexus($K$8:$K$17,L$8:L$17,S$3,S$4),"") ->  | T65: =IF(ISNUMBER($R65),DisimulateNexus($K$8:$K$17,M$8:M$17,T$3,T$4),"") ->  | U65: =IF(ISNUMBER($R65),DisimulateNexus($K$8:$K$17,N$8:N$17,U$3,U$4),"") ->  | V65: =IF(ISNUMBER($R65),DisimulateNexus($K$8:$K$17,O$8:O$17,V$3,V$4),"") ->  | W65: =IF(ISNUMBER($R65),DisimulateNexus($K$8:$K$17,P$8:P$17,W$3,W$4),"") -> 
A66: 59 | B66: 2015 | C66: 2 | D66: 28 | E66: 6 | F66: 0 | G66: 6 | H66: 2 | I66: 5 | S66: =IF(ISNUMBER($R66),DisimulateNexus($K$8:$K$17,L$8:L$17,S$3,S$4),"") ->  | T66: =IF(ISNUMBER($R66),DisimulateNexus($K$8:$K$17,M$8:M$17,T$3,T$4),"") ->  | U66: =IF(ISNUMBER($R66),DisimulateNexus($K$8:$K$17,N$8:N$17,U$3,U$4),"") ->  | V66: =IF(ISNUMBER($R66),DisimulateNexus($K$8:$K$17,O$8:O$17,V$3,V$4),"") ->  | W66: =IF(ISNUMBER($R66),DisimulateNexus($K$8:$K$17,P$8:P$17,W$3,W$4),"") -> 
A67: 60 | B67: 2015 | C67: 3 | D67: 1 | E67: 6 | F67: 5 | G67: 7 | H67: 3 | I67: 2 | S67: =IF(ISNUMBER($R67),DisimulateNexus($K$8:$K$17,L$8:L$17,S$3,S$4),"") ->  | T67: =IF(ISNUMBER($R67),DisimulateNexus($K$8:$K$17,M$8:M$17,T$3,T$4),"") ->  | U67: =IF(ISNUMBER($R67),DisimulateNexus($K$8:$K$17,N$8:N$17,U$3,U$4),"") ->  | V67: =IF(ISNUMBER($R67),DisimulateNexus($K$8:$K$17,O$8:O$17,V$3,V$4),"") ->  | W67: =IF(ISNUMBER($R67),DisimulateNexus($K$8:$K$17,P$8:P$17,W$3,W$4),"") -> 
A68: 61 | B68: 2015 | C68: 3 | D68: 2 | E68: 9 | F68: 5 | G68: 5 | H68: 3 | I68: 0 | S68: =IF(ISNUMBER($R68),DisimulateNexus($K$8:$K$17,L$8:L$17,S$3,S$4),"") ->  | T68: =IF(ISNUMBER($R68),DisimulateNexus($K$8:$K$17,M$8:M$17,T$3,T$4),"") ->  | U68: =IF(ISNUMBER($R68),DisimulateNexus($K$8:$K$17,N$8:N$17,U$3,U$4),"") ->  | V68: =IF(ISNUMBER($R68),DisimulateNexus($K$8:$K$17,O$8:O$17,V$3,V$4),"") ->  | W68: =IF(ISNUMBER($R68),DisimulateNexus($K$8:$K$17,P$8:P$17,W$3,W$4),"") -> 
A69: 62 | B69: 2015 | C69: 3 | D69: 3 | E69: 3 | F69: 0 | G69: 4 | H69: 7 | I69: 4 | S69: =IF(ISNUMBER($R69),DisimulateNexus($K$8:$K$17,L$8:L$17,S$3,S$4),"") ->  | T69: =IF(ISNUMBER($R69),DisimulateNexus($K$8:$K$17,M$8:M$17,T$3,T$4),"") ->  | U69: =IF(ISNUMBER($R69),DisimulateNexus($K$8:$K$17,N$8:N$17,U$3,U$4),"") ->  | V69: =IF(ISNUMBER($R69),DisimulateNexus($K$8:$K$17,O$8:O$17,V$3,V$4),"") ->  | W69: =IF(ISNUMBER($R69),DisimulateNexus($K$8:$K$17,P$8:P$17,W$3,W$4),"") -> 
A70: 63 | B70: 2015 | C70: 3 | D70: 4 | E70: 8 | F70: 4 | G70: 9 | H70: 2 | I70: 3 | S70: =IF(ISNUMBER($R70),DisimulateNexus($K$8:$K$17,L$8:L$17,S$3,S$4),"") ->  | T70: =IF(ISNUMBER($R70),DisimulateNexus($K$8:$K$17,M$8:M$17,T$3,T$4),"") ->  | U70: =IF(ISNUMBER($R70),DisimulateNexus($K$8:$K$17,N$8:N$17,U$3,U$4),"") ->  | V70: =IF(ISNUMBER($R70),DisimulateNexus($K$8:$K$17,O$8:O$17,V$3,V$4),"") ->  | W70: =IF(ISNUMBER($R70),DisimulateNexus($K$8:$K$17,P$8:P$17,W$3,W$4),"") -> 
A71: 64 | B71: 2015 | C71: 3 | D71: 5 | E71: 5 | F71: 7 | G71: 1 | H71: 4 | I71: 7 | S71: =IF(ISNUMBER($R71),DisimulateNexus($K$8:$K$17,L$8:L$17,S$3,S$4),"") ->  | T71: =IF(ISNUMBER($R71),DisimulateNexus($K$8:$K$17,M$8:M$17,T$3,T$4),"") ->  | U71: =IF(ISNUMBER($R71),DisimulateNexus($K$8:$K$17,N$8:N$17,U$3,U$4),"") ->  | V71: =IF(ISNUMBER($R71),DisimulateNexus($K$8:$K$17,O$8:O$17,V$3,V$4),"") ->  | W71: =IF(ISNUMBER($R71),DisimulateNexus($K$8:$K$17,P$8:P$17,W$3,W$4),"") -> 
A72: 65 | B72: 2015 | C72: 3 | D72: 6 | E72: 0 | F72: 5 | G72: 3 | H72: 7 | I72: 2 | S72: =IF(ISNUMBER($R72),DisimulateNexus($K$8:$K$17,L$8:L$17,S$3,S$4),"") ->  | T72: =IF(ISNUMBER($R72),DisimulateNexus($K$8:$K$17,M$8:M$17,T$3,T$4),"") ->  | U72: =IF(ISNUMBER($R72),DisimulateNexus($K$8:$K$17,N$8:N$17,U$3,U$4),"") ->  | V72: =IF(ISNUMBER($R72),DisimulateNexus($K$8:$K$17,O$8:O$17,V$3,V$4),"") ->  | W72: =IF(ISNUMBER($R72),DisimulateNexus($K$8:$K$17,P$8:P$17,W$3,W$4),"") -> 
A73: 66 | B73: 2015 | C73: 3 | D73: 7 | E73: 0 | F73: 1 | G73: 3 | H73: 6 | I73: 2 | R73: =IF(ISNUMBER(R72),IF(R72+1<=R$6,R72+1,""),"") ->  | S73: =IF(ISNUMBER($R73),DisimulateNexus($K$8:$K$17,L$8:L$17,S$3,S$4),"") ->  | T73: =IF(ISNUMBER($R73),DisimulateNexus($K$8:$K$17,M$8:M$17,T$3,T$4),"") ->  | U73: =IF(ISNUMBER($R73),DisimulateNexus($K$8:$K$17,N$8:N$17,U$3,U$4),"") ->  | V73: =IF(ISNUMBER($R73),DisimulateNexus($K$8:$K$17,O$8:O$17,V$3,V$4),"") ->  | W73: =IF(ISNUMBER($R73),DisimulateNexus($K$8:$K$17,P$8:P$17,W$3,W$4),"") -> 
A74: 67 | B74: 2015 | C74: 3 | D74: 8 | E74: 2 | F74: 0 | G74: 7 | H74: 8 | I74: 1 | S74: =IF(ISNUMBER($R74),DisimulateNexus($K$8:$K$17,L$8:L$17,S$3,S$4),"") ->  | T74: =IF(ISNUMBER($R74),DisimulateNexus($K$8:$K$17,M$8:M$17,T$3,T$4),"") ->  | U74: =IF(ISNUMBER($R74),DisimulateNexus($K$8:$K$17,N$8:N$17,U$3,U$4),"") ->  | V74: =IF(ISNUMBER($R74),DisimulateNexus($K$8:$K$17,O$8:O$17,V$3,V$4),"") ->  | W74: =IF(ISNUMBER($R74),DisimulateNexus($K$8:$K$17,P$8:P$17,W$3,W$4),"") -> 
A75: 68 | B75: 2015 | C75: 3 | D75: 9 | E75: 1 | F75: 4 | G75: 5 | H75: 3 | I75: 5 | S75: =IF(ISNUMBER($R75),DisimulateNexus($K$8:$K$17,L$8:L$17,S$3,S$4),"") ->  | T75: =IF(ISNUMBER($R75),DisimulateNexus($K$8:$K$17,M$8:M$17,T$3,T$4),"") ->  | U75: =IF(ISNUMBER($R75),DisimulateNexus($K$8:$K$17,N$8:N$17,U$3,U$4),"") ->  | V75: =IF(ISNUMBER($R75),DisimulateNexus($K$8:$K$17,O$8:O$17,V$3,V$4),"") ->  | W75: =IF(ISNUMBER($R75),DisimulateNexus($K$8:$K$17,P$8:P$17,W$3,W$4),"") -> 
A76: 69 | B76: 2015 | C76: 3 | D76: 10 | E76: 6 | F76: 7 | G76: 5 | H76: 8 | I76: 6 | S76: =IF(ISNUMBER($R76),DisimulateNexus($K$8:$K$17,L$8:L$17,S$3,S$4),"") ->  | T76: =IF(ISNUMBER($R76),DisimulateNexus($K$8:$K$17,M$8:M$17,T$3,T$4),"") ->  | U76: =IF(ISNUMBER($R76),DisimulateNexus($K$8:$K$17,N$8:N$17,U$3,U$4),"") ->  | V76: =IF(ISNUMBER($R76),DisimulateNexus($K$8:$K$17,O$8:O$17,V$3,V$4),"") ->  | W76: =IF(ISNUMBER($R76),DisimulateNexus($K$8:$K$17,P$8:P$17,W$3,W$4),"") -> 
A77: 70 | B77: 2015 | C77: 3 | D77: 11 | E77: 7 | F77: 9 | G77: 9 | H77: 4 | I77: 0 | S77: =IF(ISNUMBER($R77),DisimulateNexus($K$8:$K$17,L$8:L$17,S$3,S$4),"") ->  | T77: =IF(ISNUMBER($R77),DisimulateNexus($K$8:$K$17,M$8:M$17,T$3,T$4),"") ->  | U77: =IF(ISNUMBER($R77),DisimulateNexus($K$8:$K$17,N$8:N$17,U$3,U$4),"") ->  | V77: =IF(ISNUMBER($R77),DisimulateNexus($K$8:$K$17,O$8:O$17,V$3,V$4),"") ->  | W77: =IF(ISNUMBER($R77),DisimulateNexus($K$8:$K$17,P$8:P$17,W$3,W$4),"") -> 
A78: 71 | B78: 2015 | C78: 3 | D78: 12 | E78: 9 | F78: 3 | G78: 3 | H78: 6 | I78: 7 | S78: =IF(ISNUMBER($R78),DisimulateNexus($K$8:$K$17,L$8:L$17,S$3,S$4),"") ->  | T78: =IF(ISNUMBER($R78),DisimulateNexus($K$8:$K$17,M$8:M$17,T$3,T$4),"") ->  | U78: =IF(ISNUMBER($R78),DisimulateNexus($K$8:$K$17,N$8:N$17,U$3,U$4),"") ->  | V78: =IF(ISNUMBER($R78),DisimulateNexus($K$8:$K$17,O$8:O$17,V$3,V$4),"") ->  | W78: =IF(ISNUMBER($R78),DisimulateNexus($K$8:$K$17,P$8:P$17,W$3,W$4),"") -> 
A79: 72 | B79: 2015 | C79: 3 | D79: 13 | E79: 4 | F79: 5 | G79: 8 | H79: 4 | I79: 7 | S79: =IF(ISNUMBER($R79),DisimulateNexus($K$8:$K$17,L$8:L$17,S$3,S$4),"") ->  | T79: =IF(ISNUMBER($R79),DisimulateNexus($K$8:$K$17,M$8:M$17,T$3,T$4),"") ->  | U79: =IF(ISNUMBER($R79),DisimulateNexus($K$8:$K$17,N$8:N$17,U$3,U$4),"") ->  | V79: =IF(ISNUMBER($R79),DisimulateNexus($K$8:$K$17,O$8:O$17,V$3,V$4),"") ->  | W79: =IF(ISNUMBER($R79),DisimulateNexus($K$8:$K$17,P$8:P$17,W$3,W$4),"") -> 
A80: 73 | B80: 2015 | C80: 3 | D80: 14 | E80: 3 | F80: 7 | G80: 2 | H80: 2 | I80: 8 | S80: =IF(ISNUMBER($R80),DisimulateNexus($K$8:$K$17,L$8:L$17,S$3,S$4),"") ->  | T80: =IF(ISNUMBER($R80),DisimulateNexus($K$8:$K$17,M$8:M$17,T$3,T$4),"") ->  | U80: =IF(ISNUMBER($R80),DisimulateNexus($K$8:$K$17,N$8:N$17,U$3,U$4),"") ->  | V80: =IF(ISNUMBER($R80),DisimulateNexus($K$8:$K$17,O$8:O$17,V$3,V$4),"") ->  | W80: =IF(ISNUMBER($R80),DisimulateNexus($K$8:$K$17,P$8:P$17,W$3,W$4),"") -> 
A81: 74 | B81: 2015 | C81: 3 | D81: 15 | E81: 8 | F81: 6 | G81: 0 | H81: 9 | I81: 9 | S81: =IF(ISNUMBER($R81),DisimulateNexus($K$8:$K$17,L$8:L$17,S$3,S$4),"") ->  | T81: =IF(ISNUMBER($R81),DisimulateNexus($K$8:$K$17,M$8:M$17,T$3,T$4),"") ->  | U81: =IF(ISNUMBER($R81),DisimulateNexus($K$8:$K$17,N$8:N$17,U$3,U$4),"") ->  | V81: =IF(ISNUMBER($R81),DisimulateNexus($K$8:$K$17,O$8:O$17,V$3,V$4),"") ->  | W81: =IF(ISNUMBER($R81),DisimulateNexus($K$8:$K$17,P$8:P$17,W$3,W$4),"") -> 
A82: 75 | B82: 2015 | C82: 3 | D82: 16 | E82: 1 | F82: 5 | G82: 6 | H82: 2 | I82: 9 | S82: =IF(ISNUMBER($R82),DisimulateNexus($K$8:$K$17,L$8:L$17,S$3,S$4),"") ->  | T82: =IF(ISNUMBER($R82),DisimulateNexus($K$8:$K$17,M$8:M$17,T$3,T$4),"") ->  | U82: =IF(ISNUMBER($R82),DisimulateNexus($K$8:$K$17,N$8:N$17,U$3,U$4),"") ->  | V82: =IF(ISNUMBER($R82),DisimulateNexus($K$8:$K$17,O$8:O$17,V$3,V$4),"") ->  | W82: =IF(ISNUMBER($R82),DisimulateNexus($K$8:$K$17,P$8:P$17,W$3,W$4),"") -> 
A83: 76 | B83: 2015 | C83: 3 | D83: 17 | E83: 7 | F83: 8 | G83: 2 | H83: 7 | I83: 5 | S83: =IF(ISNUMBER($R83),DisimulateNexus($K$8:$K$17,L$8:L$17,S$3,S$4),"") ->  | T83: =IF(ISNUMBER($R83),DisimulateNexus($K$8:$K$17,M$8:M$17,T$3,T$4),"") ->  | U83: =IF(ISNUMBER($R83),DisimulateNexus($K$8:$K$17,N$8:N$17,U$3,U$4),"") ->  | V83: =IF(ISNUMBER($R83),DisimulateNexus($K$8:$K$17,O$8:O$17,V$3,V$4),"") ->  | W83: =IF(ISNUMBER($R83),DisimulateNexus($K$8:$K$17,P$8:P$17,W$3,W$4),"") -> 
A84: 77 | B84: 2015 | C84: 3 | D84: 18 | E84: 0 | F84: 3 | G84: 6 | H84: 9 | I84: 9 | S84: =IF(ISNUMBER($R84),DisimulateNexus($K$8:$K$17,L$8:L$17,S$3,S$4),"") ->  | T84: =IF(ISNUMBER($R84),DisimulateNexus($K$8:$K$17,M$8:M$17,T$3,T$4),"") ->  | U84: =IF(ISNUMBER($R84),DisimulateNexus($K$8:$K$17,N$8:N$17,U$3,U$4),"") ->  | V84: =IF(ISNUMBER($R84),DisimulateNexus($K$8:$K$17,O$8:O$17,V$3,V$4),"") ->  | W84: =IF(ISNUMBER($R84),DisimulateNexus($K$8:$K$17,P$8:P$17,W$3,W$4),"") -> 
A85: 78 | B85: 2015 | C85: 3 | D85: 19 | E85: 7 | F85: 8 | G85: 1 | H85: 7 | I85: 1 | S85: =IF(ISNUMBER($R85),DisimulateNexus($K$8:$K$17,L$8:L$17,S$3,S$4),"") ->  | T85: =IF(ISNUMBER($R85),DisimulateNexus($K$8:$K$17,M$8:M$17,T$3,T$4),"") ->  | U85: =IF(ISNUMBER($R85),DisimulateNexus($K$8:$K$17,N$8:N$17,U$3,U$4),"") ->  | V85: =IF(ISNUMBER($R85),DisimulateNexus($K$8:$K$17,O$8:O$17,V$3,V$4),"") ->  | W85: =IF(ISNUMBER($R85),DisimulateNexus($K$8:$K$17,P$8:P$17,W$3,W$4),"") -> 
A86: 79 | B86: 2015 | C86: 3 | D86: 20 | E86: 7 | F86: 4 | G86: 9 | H86: 7 | I86: 2 | S86: =IF(ISNUMBER($R86),DisimulateNexus($K$8:$K$17,L$8:L$17,S$3,S$4),"") ->  | T86: =IF(ISNUMBER($R86),DisimulateNexus($K$8:$K$17,M$8:M$17,T$3,T$4),"") ->  | U86: =IF(ISNUMBER($R86),DisimulateNexus($K$8:$K$17,N$8:N$17,U$3,U$4),"") ->  | V86: =IF(ISNUMBER($R86),DisimulateNexus($K$8:$K$17,O$8:O$17,V$3,V$4),"") ->  | W86: =IF(ISNUMBER($R86),DisimulateNexus($K$8:$K$17,P$8:P$17,W$3,W$4),"") -> 
A87: 80 | B87: 2015 | C87: 3 | D87: 21 | E87: 4 | F87: 3 | G87: 9 | H87: 0 | I87: 9 | S87: =IF(ISNUMBER($R87),DisimulateNexus($K$8:$K$17,L$8:L$17,S$3,S$4),"") ->  | T87: =IF(ISNUMBER($R87),DisimulateNexus($K$8:$K$17,M$8:M$17,T$3,T$4),"") ->  | U87: =IF(ISNUMBER($R87),DisimulateNexus($K$8:$K$17,N$8:N$17,U$3,U$4),"") ->  | V87: =IF(ISNUMBER($R87),DisimulateNexus($K$8:$K$17,O$8:O$17,V$3,V$4),"") ->  | W87: =IF(ISNUMBER($R87),DisimulateNexus($K$8:$K$17,P$8:P$17,W$3,W$4),"") -> 
A88: 81 | B88: 2015 | C88: 3 | D88: 22 | E88: 6 | F88: 8 | G88: 4 | H88: 2 | I88: 8 | S88: =IF(ISNUMBER($R88),DisimulateNexus($K$8:$K$17,L$8:L$17,S$3,S$4),"") ->  | T88: =IF(ISNUMBER($R88),DisimulateNexus($K$8:$K$17,M$8:M$17,T$3,T$4),"") ->  | U88: =IF(ISNUMBER($R88),DisimulateNexus($K$8:$K$17,N$8:N$17,U$3,U$4),"") ->  | V88: =IF(ISNUMBER($R88),DisimulateNexus($K$8:$K$17,O$8:O$17,V$3,V$4),"") ->  | W88: =IF(ISNUMBER($R88),DisimulateNexus($K$8:$K$17,P$8:P$17,W$3,W$4),"") -> 
A89: 82 | B89: 2015 | C89: 3 | D89: 23 | E89: 1 | F89: 8 | G89: 5 | H89: 8 | I89: 8 | S89: =IF(ISNUMBER($R89),DisimulateNexus($K$8:$K$17,L$8:L$17,S$3,S$4),"") ->  | T89: =IF(ISNUMBER($R89),DisimulateNexus($K$8:$K$17,M$8:M$17,T$3,T$4),"") ->  | U89: =IF(ISNUMBER($R89),DisimulateNexus($K$8:$K$17,N$8:N$17,U$3,U$4),"") ->  | V89: =IF(ISNUMBER($R89),DisimulateNexus($K$8:$K$17,O$8:O$17,V$3,V$4),"") ->  | W89: =IF(ISNUMBER($R89),DisimulateNexus($K$8:$K$17,P$8:P$17,W$3,W$4),"") -> 
A90: 83 | B90: 2015 | C90: 3 | D90: 24 | E90: 1 | F90: 8 | G90: 4 | H90: 3 | I90: 7 | S90: =IF(ISNUMBER($R90),DisimulateNexus($K$8:$K$17,L$8:L$17,S$3,S$4),"") ->  | T90: =IF(ISNUMBER($R90),DisimulateNexus($K$8:$K$17,M$8:M$17,T$3,T$4),"") ->  | U90: =IF(ISNUMBER($R90),DisimulateNexus($K$8:$K$17,N$8:N$17,U$3,U$4),"") ->  | V90: =IF(ISNUMBER($R90),DisimulateNexus($K$8:$K$17,O$8:O$17,V$3,V$4),"") ->  | W90: =IF(ISNUMBER($R90),DisimulateNexus($K$8:$K$17,P$8:P$17,W$3,W$4),"") -> 
A91: 84 | B91: 2015 | C91: 3 | D91: 25 | E91: 1 | F91: 0 | G91: 3 | H91: 6 | I91: 1 | S91: =IF(ISNUMBER($R91),DisimulateNexus($K$8:$K$17,L$8:L$17,S$3,S$4),"") ->  | T91: =IF(ISNUMBER($R91),DisimulateNexus($K$8:$K$17,M$8:M$17,T$3,T$4),"") ->  | U91: =IF(ISNUMBER($R91),DisimulateNexus($K$8:$K$17,N$8:N$17,U$3,U$4),"") ->  | V91: =IF(ISNUMBER($R91),DisimulateNexus($K$8:$K$17,O$8:O$17,V$3,V$4),"") ->  | W91: =IF(ISNUMBER($R91),DisimulateNexus($K$8:$K$17,P$8:P$17,W$3,W$4),"") -> 
A92: 85 | B92: 2015 | C92: 3 | D92: 26 | E92: 9 | F92: 2 | G92: 5 | H92: 4 | I92: 1 | S92: =IF(ISNUMBER($R92),DisimulateNexus($K$8:$K$17,L$8:L$17,S$3,S$4),"") ->  | T92: =IF(ISNUMBER($R92),DisimulateNexus($K$8:$K$17,M$8:M$17,T$3,T$4),"") ->  | U92: =IF(ISNUMBER($R92),DisimulateNexus($K$8:$K$17,N$8:N$17,U$3,U$4),"") ->  | V92: =IF(ISNUMBER($R92),DisimulateNexus($K$8:$K$17,O$8:O$17,V$3,V$4),"") ->  | W92: =IF(ISNUMBER($R92),DisimulateNexus($K$8:$K$17,P$8:P$17,W$3,W$4),"") -> 
A93: 86 | B93: 2015 | C93: 3 | D93: 27 | E93: 0 | F93: 3 | G93: 8 | H93: 5 | I93: 6 | S93: =IF(ISNUMBER($R93),DisimulateNexus($K$8:$K$17,L$8:L$17,S$3,S$4),"") ->  | T93: =IF(ISNUMBER($R93),DisimulateNexus($K$8:$K$17,M$8:M$17,T$3,T$4),"") ->  | U93: =IF(ISNUMBER($R93),DisimulateNexus($K$8:$K$17,N$8:N$17,U$3,U$4),"") ->  | V93: =IF(ISNUMBER($R93),DisimulateNexus($K$8:$K$17,O$8:O$17,V$3,V$4),"") ->  | W93: =IF(ISNUMBER($R93),DisimulateNexus($K$8:$K$17,P$8:P$17,W$3,W$4),"") -> 
A94: 87 | B94: 2015 | C94: 3 | D94: 28 | E94: 5 | F94: 1 | G94: 9 | H94: 2 | I94: 2 | S94: =IF(ISNUMBER($R94),DisimulateNexus($K$8:$K$17,L$8:L$17,S$3,S$4),"") ->  | T94: =IF(ISNUMBER($R94),DisimulateNexus($K$8:$K$17,M$8:M$17,T$3,T$4),"") ->  | U94: =IF(ISNUMBER($R94),DisimulateNexus($K$8:$K$17,N$8:N$17,U$3,U$4),"") ->  | V94: =IF(ISNUMBER($R94),DisimulateNexus($K$8:$K$17,O$8:O$17,V$3,V$4),"") ->  | W94: =IF(ISNUMBER($R94),DisimulateNexus($K$8:$K$17,P$8:P$17,W$3,W$4),"") -> 
A95: 88 | B95: 2015 | C95: 3 | D95: 29 | E95: 4 | F95: 0 | G95: 5 | H95: 8 | I95: 9 | S95: =IF(ISNUMBER($R95),DisimulateNexus($K$8:$K$17,L$8:L$17,S$3,S$4),"") ->  | T95: =IF(ISNUMBER($R95),DisimulateNexus($K$8:$K$17,M$8:M$17,T$3,T$4),"") ->  | U95: =IF(ISNUMBER($R95),DisimulateNexus($K$8:$K$17,N$8:N$17,U$3,U$4),"") ->  | V95: =IF(ISNUMBER($R95),DisimulateNexus($K$8:$K$17,O$8:O$17,V$3,V$4),"") ->  | W95: =IF(ISNUMBER($R95),DisimulateNexus($K$8:$K$17,P$8:P$17,W$3,W$4),"") -> 
A96: 89 | B96: 2015 | C96: 3 | D96: 30 | E96: 0 | F96: 9 | G96: 5 | H96: 9 | I96: 8 | S96: =IF(ISNUMBER($R96),DisimulateNexus($K$8:$K$17,L$8:L$17,S$3,S$4),"") ->  | T96: =IF(ISNUMBER($R96),DisimulateNexus($K$8:$K$17,M$8:M$17,T$3,T$4),"") ->  | U96: =IF(ISNUMBER($R96),DisimulateNexus($K$8:$K$17,N$8:N$17,U$3,U$4),"") ->  | V96: =IF(ISNUMBER($R96),DisimulateNexus($K$8:$K$17,O$8:O$17,V$3,V$4),"") ->  | W96: =IF(ISNUMBER($R96),DisimulateNexus($K$8:$K$17,P$8:P$17,W$3,W$4),"") -> 
A97: 90 | B97: 2015 | C97: 3 | D97: 31 | E97: 0 | F97: 0 | G97: 4 | H97: 0 | I97: 8 | S97: =IF(ISNUMBER($R97),DisimulateNexus($K$8:$K$17,L$8:L$17,S$3,S$4),"") ->  | T97: =IF(ISNUMBER($R97),DisimulateNexus($K$8:$K$17,M$8:M$17,T$3,T$4),"") ->  | U97: =IF(ISNUMBER($R97),DisimulateNexus($K$8:$K$17,N$8:N$17,U$3,U$4),"") ->  | V97: =IF(ISNUMBER($R97),DisimulateNexus($K$8:$K$17,O$8:O$17,V$3,V$4),"") ->  | W97: =IF(ISNUMBER($R97),DisimulateNexus($K$8:$K$17,P$8:P$17,W$3,W$4),"") -> 
A98: 91 | B98: 2015 | C98: 4 | D98: 1 | E98: 4 | F98: 6 | G98: 8 | H98: 5 | I98: 9 | S98: =IF(ISNUMBER($R98),DisimulateNexus($K$8:$K$17,L$8:L$17,S$3,S$4),"") ->  | T98: =IF(ISNUMBER($R98),DisimulateNexus($K$8:$K$17,M$8:M$17,T$3,T$4),"") ->  | U98: =IF(ISNUMBER($R98),DisimulateNexus($K$8:$K$17,N$8:N$17,U$3,U$4),"") ->  | V98: =IF(ISNUMBER($R98),DisimulateNexus($K$8:$K$17,O$8:O$17,V$3,V$4),"") ->  | W98: =IF(ISNUMBER($R98),DisimulateNexus($K$8:$K$17,P$8:P$17,W$3,W$4),"") -> 
A99: 92 | B99: 2015 | C99: 4 | D99: 2 | E99: 6 | F99: 4 | G99: 3 | H99: 9 | I99: 7 | S99: =IF(ISNUMBER($R99),DisimulateNexus($K$8:$K$17,L$8:L$17,S$3,S$4),"") ->  | T99: =IF(ISNUMBER($R99),DisimulateNexus($K$8:$K$17,M$8:M$17,T$3,T$4),"") ->  | U99: =IF(ISNUMBER($R99),DisimulateNexus($K$8:$K$17,N$8:N$17,U$3,U$4),"") ->  | V99: =IF(ISNUMBER($R99),DisimulateNexus($K$8:$K$17,O$8:O$17,V$3,V$4),"") ->  | W99: =IF(ISNUMBER($R99),DisimulateNexus($K$8:$K$17,P$8:P$17,W$3,W$4),"") -> 
A100: 93 | B100: 2015 | C100: 4 | D100: 3 | E100: 2 | F100: 3 | G100: 6 | H100: 1 | I100: 4 | S100: =IF(ISNUMBER($R100),DisimulateNexus($K$8:$K$17,L$8:L$17,S$3,S$4),"") ->  | T100: =IF(ISNUMBER($R100),DisimulateNexus($K$8:$K$17,M$8:M$17,T$3,T$4),"") ->  | U100: =IF(ISNUMBER($R100),DisimulateNexus($K$8:$K$17,N$8:N$17,U$3,U$4),"") ->  | V100: =IF(ISNUMBER($R100),DisimulateNexus($K$8:$K$17,O$8:O$17,V$3,V$4),"") ->  | W100: =IF(ISNUMBER($R100),DisimulateNexus($K$8:$K$17,P$8:P$17,W$3,W$4),"") -> 
A101: 94 | B101: 2015 | C101: 4 | D101: 4 | E101: 8 | F101: 0 | G101: 5 | H101: 4 | I101: 5 | S101: =IF(ISNUMBER($R101),DisimulateNexus($K$8:$K$17,L$8:L$17,S$3,S$4),"") ->  | T101: =IF(ISNUMBER($R101),DisimulateNexus($K$8:$K$17,M$8:M$17,T$3,T$4),"") ->  | U101: =IF(ISNUMBER($R101),DisimulateNexus($K$8:$K$17,N$8:N$17,U$3,U$4),"") ->  | V101: =IF(ISNUMBER($R101),DisimulateNexus($K$8:$K$17,O$8:O$17,V$3,V$4),"") ->  | W101: =IF(ISNUMBER($R101),DisimulateNexus($K$8:$K$17,P$8:P$17,W$3,W$4),"") -> 
A102: 95 | B102: 2015 | C102: 4 | D102: 5 | E102: 6 | F102: 4 | G102: 0 | H102: 4 | I102: 4 | S102: =IF(ISNUMBER($R102),DisimulateNexus($K$8:$K$17,L$8:L$17,S$3,S$4),"") ->  | T102: =IF(ISNUMBER($R102),DisimulateNexus($K$8:$K$17,M$8:M$17,T$3,T$4),"") ->  | U102: =IF(ISNUMBER($R102),DisimulateNexus($K$8:$K$17,N$8:N$17,U$3,U$4),"") ->  | V102: =IF(ISNUMBER($R102),DisimulateNexus($K$8:$K$17,O$8:O$17,V$3,V$4),"") ->  | W102: =IF(ISNUMBER($R102),DisimulateNexus($K$8:$K$17,P$8:P$17,W$3,W$4),"") -> 
A103: 96 | B103: 2015 | C103: 4 | D103: 6 | E103: 3 | F103: 3 | G103: 8 | H103: 0 | I103: 1 | S103: =IF(ISNUMBER($R103),DisimulateNexus($K$8:$K$17,L$8:L$17,S$3,S$4),"") ->  | T103: =IF(ISNUMBER($R103),DisimulateNexus($K$8:$K$17,M$8:M$17,T$3,T$4),"") ->  | U103: =IF(ISNUMBER($R103),DisimulateNexus($K$8:$K$17,N$8:N$17,U$3,U$4),"") ->  | V103: =IF(ISNUMBER($R103),DisimulateNexus($K$8:$K$17,O$8:O$17,V$3,V$4),"") ->  | W103: =IF(ISNUMBER($R103),DisimulateNexus($K$8:$K$17,P$8:P$17,W$3,W$4),"") -> 
A104: 97 | B104: 2015 | C104: 4 | D104: 7 | E104: 7 | F104: 1 | G104: 0 | H104: 2 | I104: 5 | S104: =IF(ISNUMBER($R104),DisimulateNexus($K$8:$K$17,L$8:L$17,S$3,S$4),"") ->  | T104: =IF(ISNUMBER($R104),DisimulateNexus($K$8:$K$17,M$8:M$17,T$3,T$4),"") ->  | U104: =IF(ISNUMBER($R104),DisimulateNexus($K$8:$K$17,N$8:N$17,U$3,U$4),"") ->  | V104: =IF(ISNUMBER($R104),DisimulateNexus($K$8:$K$17,O$8:O$17,V$3,V$4),"") ->  | W104: =IF(ISNUMBER($R104),DisimulateNexus($K$8:$K$17,P$8:P$17,W$3,W$4),"") -> 
A105: 98 | B105: 2015 | C105: 4 | D105: 8 | E105: 5 | F105: 7 | G105: 0 | H105: 3 | I105: 2 | S105: =IF(ISNUMBER($R105),DisimulateNexus($K$8:$K$17,L$8:L$17,S$3,S$4),"") ->  | T105: =IF(ISNUMBER($R105),DisimulateNexus($K$8:$K$17,M$8:M$17,T$3,T$4),"") ->  | U105: =IF(ISNUMBER($R105),DisimulateNexus($K$8:$K$17,N$8:N$17,U$3,U$4),"") ->  | V105: =IF(ISNUMBER($R105),DisimulateNexus($K$8:$K$17,O$8:O$17,V$3,V$4),"") ->  | W105: =IF(ISNUMBER($R105),DisimulateNexus($K$8:$K$17,P$8:P$17,W$3,W$4),"") -> 
A106: 99 | B106: 2015 | C106: 4 | D106: 9 | E106: 1 | F106: 2 | G106: 6 | H106: 2 | I106: 4 | S106: =IF(ISNUMBER($R106),DisimulateNexus($K$8:$K$17,L$8:L$17,S$3,S$4),"") ->  | T106: =IF(ISNUMBER($R106),DisimulateNexus($K$8:$K$17,M$8:M$17,T$3,T$4),"") ->  | U106: =IF(ISNUMBER($R106),DisimulateNexus($K$8:$K$17,N$8:N$17,U$3,U$4),"") ->  | V106: =IF(ISNUMBER($R106),DisimulateNexus($K$8:$K$17,O$8:O$17,V$3,V$4),"") ->  | W106: =IF(ISNUMBER($R106),DisimulateNexus($K$8:$K$17,P$8:P$17,W$3,W$4),"") -> 
A107: 100 | B107: 2015 | C107: 4 | D107: 10 | E107: 1 | F107: 0 | G107: 3 | H107: 3 | I107: 5 | S107: =IF(ISNUMBER($R107),DisimulateNexus($K$8:$K$17,L$8:L$17,S$3,S$4),"") ->  | T107: =IF(ISNUMBER($R107),DisimulateNexus($K$8:$K$17,M$8:M$17,T$3,T$4),"") ->  | U107: =IF(ISNUMBER($R107),DisimulateNexus($K$8:$K$17,N$8:N$17,U$3,U$4),"") ->  | V107: =IF(ISNUMBER($R107),DisimulateNexus($K$8:$K$17,O$8:O$17,V$3,V$4),"") ->  | W107: =IF(ISNUMBER($R107),DisimulateNexus($K$8:$K$17,P$8:P$17,W$3,W$4),"") -> 
A108: 101 | B108: 2015 | C108: 4 | D108: 11 | E108: 6 | F108: 6 | G108: 3 | H108: 7 | I108: 7 | S108: =IF(ISNUMBER($R108),DisimulateNexus($K$8:$K$17,L$8:L$17,S$3,S$4),"") ->  | T108: =IF(ISNUMBER($R108),DisimulateNexus($K$8:$K$17,M$8:M$17,T$3,T$4),"") ->  | U108: =IF(ISNUMBER($R108),DisimulateNexus($K$8:$K$17,N$8:N$17,U$3,U$4),"") ->  | V108: =IF(ISNUMBER($R108),DisimulateNexus($K$8:$K$17,O$8:O$17,V$3,V$4),"") ->  | W108: =IF(ISNUMBER($R108),DisimulateNexus($K$8:$K$17,P$8:P$17,W$3,W$4),"") -> 
A109: 102 | B109: 2015 | C109: 4 | D109: 12 | E109: 0 | F109: 8 | G109: 0 | H109: 7 | I109: 9 | S109: =IF(ISNUMBER($R109),DisimulateNexus($K$8:$K$17,L$8:L$17,S$3,S$4),"") ->  | T109: =IF(ISNUMBER($R109),DisimulateNexus($K$8:$K$17,M$8:M$17,T$3,T$4),"") ->  | U109: =IF(ISNUMBER($R109),DisimulateNexus($K$8:$K$17,N$8:N$17,U$3,U$4),"") ->  | V109: =IF(ISNUMBER($R109),DisimulateNexus($K$8:$K$17,O$8:O$17,V$3,V$4),"") ->  | W109: =IF(ISNUMBER($R109),DisimulateNexus($K$8:$K$17,P$8:P$17,W$3,W$4),"") -> 
A110: 103 | B110: 2015 | C110: 4 | D110: 13 | E110: 6 | F110: 8 | G110: 2 | H110: 3 | I110: 6 | S110: =IF(ISNUMBER($R110),DisimulateNexus($K$8:$K$17,L$8:L$17,S$3,S$4),"") ->  | T110: =IF(ISNUMBER($R110),DisimulateNexus($K$8:$K$17,M$8:M$17,T$3,T$4),"") ->  | U110: =IF(ISNUMBER($R110),DisimulateNexus($K$8:$K$17,N$8:N$17,U$3,U$4),"") ->  | V110: =IF(ISNUMBER($R110),DisimulateNexus($K$8:$K$17,O$8:O$17,V$3,V$4),"") ->  | W110: =IF(ISNUMBER($R110),DisimulateNexus($K$8:$K$17,P$8:P$17,W$3,W$4),"") -> 
A111: 104 | B111: 2015 | C111: 4 | D111: 14 | E111: 6 | F111: 3 | G111: 6 | H111: 7 | I111: 9 | S111: =IF(ISNUMBER($R111),DisimulateNexus($K$8:$K$17,L$8:L$17,S$3,S$4),"") ->  | T111: =IF(ISNUMBER($R111),DisimulateNexus($K$8:$K$17,M$8:M$17,T$3,T$4),"") ->  | U111: =IF(ISNUMBER($R111),DisimulateNexus($K$8:$K$17,N$8:N$17,U$3,U$4),"") ->  | V111: =IF(ISNUMBER($R111),DisimulateNexus($K$8:$K$17,O$8:O$17,V$3,V$4),"") ->  | W111: =IF(ISNUMBER($R111),DisimulateNexus($K$8:$K$17,P$8:P$17,W$3,W$4),"") -> 
A112: 105 | B112: 2015 | C112: 4 | D112: 15 | E112: 6 | F112: 4 | G112: 9 | H112: 3 | I112: 0 | S112: =IF(ISNUMBER($R112),DisimulateNexus($K$8:$K$17,L$8:L$17,S$3,S$4),"") ->  | T112: =IF(ISNUMBER($R112),DisimulateNexus($K$8:$K$17,M$8:M$17,T$3,T$4),"") ->  | U112: =IF(ISNUMBER($R112),DisimulateNexus($K$8:$K$17,N$8:N$17,U$3,U$4),"") ->  | V112: =IF(ISNUMBER($R112),DisimulateNexus($K$8:$K$17,O$8:O$17,V$3,V$4),"") ->  | W112: =IF(ISNUMBER($R112),DisimulateNexus($K$8:$K$17,P$8:P$17,W$3,W$4),"") -> 
A113: 106 | B113: 2015 | C113: 4 | D113: 16 | E113: 4 | F113: 7 | G113: 1 | H113: 9 | I113: 8 | S113: =IF(ISNUMBER($R113),DisimulateNexus($K$8:$K$17,L$8:L$17,S$3,S$4),"") ->  | T113: =IF(ISNUMBER($R113),DisimulateNexus($K$8:$K$17,M$8:M$17,T$3,T$4),"") ->  | U113: =IF(ISNUMBER($R113),DisimulateNexus($K$8:$K$17,N$8:N$17,U$3,U$4),"") ->  | V113: =IF(ISNUMBER($R113),DisimulateNexus($K$8:$K$17,O$8:O$17,V$3,V$4),"") ->  | W113: =IF(ISNUMBER($R113),DisimulateNexus($K$8:$K$17,P$8:P$17,W$3,W$4),"") -> 
A114: 107 | B114: 2015 | C114: 4 | D114: 17 | E114: 6 | F114: 6 | G114: 6 | H114: 7 | I114: 3 | S114: =IF(ISNUMBER($R114),DisimulateNexus($K$8:$K$17,L$8:L$17,S$3,S$4),"") ->  | T114: =IF(ISNUMBER($R114),DisimulateNexus($K$8:$K$17,M$8:M$17,T$3,T$4),"") ->  | U114: =IF(ISNUMBER($R114),DisimulateNexus($K$8:$K$17,N$8:N$17,U$3,U$4),"") ->  | V114: =IF(ISNUMBER($R114),DisimulateNexus($K$8:$K$17,O$8:O$17,V$3,V$4),"") ->  | W114: =IF(ISNUMBER($R114),DisimulateNexus($K$8:$K$17,P$8:P$17,W$3,W$4),"") -> 
A115: 108 | B115: 2015 | C115: 4 | D115: 18 | E115: 9 | F115: 2 | G115: 1 | H115: 0 | I115: 6 | S115: =IF(ISNUMBER($R115),DisimulateNexus($K$8:$K$17,L$8:L$17,S$3,S$4),"") ->  | T115: =IF(ISNUMBER($R115),DisimulateNexus($K$8:$K$17,M$8:M$17,T$3,T$4),"") ->  | U115: =IF(ISNUMBER($R115),DisimulateNexus($K$8:$K$17,N$8:N$17,U$3,U$4),"") ->  | V115: =IF(ISNUMBER($R115),DisimulateNexus($K$8:$K$17,O$8:O$17,V$3,V$4),"") ->  | W115: =IF(ISNUMBER($R115),DisimulateNexus($K$8:$K$17,P$8:P$17,W$3,W$4),"") -> 
A116: 109 | B116: 2015 | C116: 4 | D116: 19 | E116: 8 | F116: 2 | G116: 5 | H116: 5 | I116: 4 | S116: =IF(ISNUMBER($R116),DisimulateNexus($K$8:$K$17,L$8:L$17,S$3,S$4),"") ->  | T116: =IF(ISNUMBER($R116),DisimulateNexus($K$8:$K$17,M$8:M$17,T$3,T$4),"") ->  | U116: =IF(ISNUMBER($R116),DisimulateNexus($K$8:$K$17,N$8:N$17,U$3,U$4),"") ->  | V116: =IF(ISNUMBER($R116),DisimulateNexus($K$8:$K$17,O$8:O$17,V$3,V$4),"") ->  | W116: =IF(ISNUMBER($R116),DisimulateNexus($K$8:$K$17,P$8:P$17,W$3,W$4),"") -> 
A117: 110 | B117: 2015 | C117: 4 | D117: 20 | E117: 8 | F117: 9 | G117: 1 | H117: 2 | I117: 9 | S117: =IF(ISNUMBER($R117),DisimulateNexus($K$8:$K$17,L$8:L$17,S$3,S$4),"") ->  | T117: =IF(ISNUMBER($R117),DisimulateNexus($K$8:$K$17,M$8:M$17,T$3,T$4),"") ->  | U117: =IF(ISNUMBER($R117),DisimulateNexus($K$8:$K$17,N$8:N$17,U$3,U$4),"") ->  | V117: =IF(ISNUMBER($R117),DisimulateNexus($K$8:$K$17,O$8:O$17,V$3,V$4),"") ->  | W117: =IF(ISNUMBER($R117),DisimulateNexus($K$8:$K$17,P$8:P$17,W$3,W$4),"") -> 
A118: 111 | B118: 2015 | C118: 4 | D118: 21 | E118: 7 | F118: 2 | G118: 0 | H118: 2 | I118: 4 | S118: =IF(ISNUMBER($R118),DisimulateNexus($K$8:$K$17,L$8:L$17,S$3,S$4),"") ->  | T118: =IF(ISNUMBER($R118),DisimulateNexus($K$8:$K$17,M$8:M$17,T$3,T$4),"") ->  | U118: =IF(ISNUMBER($R118),DisimulateNexus($K$8:$K$17,N$8:N$17,U$3,U$4),"") ->  | V118: =IF(ISNUMBER($R118),DisimulateNexus($K$8:$K$17,O$8:O$17,V$3,V$4),"") ->  | W118: =IF(ISNUMBER($R118),DisimulateNexus($K$8:$K$17,P$8:P$17,W$3,W$4),"") -> 
A119: 112 | B119: 2015 | C119: 4 | D119: 22 | E119: 4 | F119: 5 | G119: 4 | H119: 2 | I119: 0 | S119: =IF(ISNUMBER($R119),DisimulateNexus($K$8:$K$17,L$8:L$17,S$3,S$4),"") ->  | T119: =IF(ISNUMBER($R119),DisimulateNexus($K$8:$K$17,M$8:M$17,T$3,T$4),"") ->  | U119: =IF(ISNUMBER($R119),DisimulateNexus($K$8:$K$17,N$8:N$17,U$3,U$4),"") ->  | V119: =IF(ISNUMBER($R119),DisimulateNexus($K$8:$K$17,O$8:O$17,V$3,V$4),"") ->  | W119: =IF(ISNUMBER($R119),DisimulateNexus($K$8:$K$17,P$8:P$17,W$3,W$4),"") -> 
A120: 113 | B120: 2015 | C120: 4 | D120: 23 | E120: 7 | F120: 4 | G120: 3 | H120: 1 | I120: 5 | S120: =IF(ISNUMBER($R120),DisimulateNexus($K$8:$K$17,L$8:L$17,S$3,S$4),"") ->  | T120: =IF(ISNUMBER($R120),DisimulateNexus($K$8:$K$17,M$8:M$17,T$3,T$4),"") ->  | U120: =IF(ISNUMBER($R120),DisimulateNexus($K$8:$K$17,N$8:N$17,U$3,U$4),"") ->  | V120: =IF(ISNUMBER($R120),DisimulateNexus($K$8:$K$17,O$8:O$17,V$3,V$4),"") ->  | W120: =IF(ISNUMBER($R120),DisimulateNexus($K$8:$K$17,P$8:P$17,W$3,W$4),"") -> 
A121: 114 | B121: 2015 | C121: 4 | D121: 24 | E121: 0 | F121: 8 | G121: 3 | H121: 5 | I121: 5 | S121: =IF(ISNUMBER($R121),DisimulateNexus($K$8:$K$17,L$8:L$17,S$3,S$4),"") ->  | T121: =IF(ISNUMBER($R121),DisimulateNexus($K$8:$K$17,M$8:M$17,T$3,T$4),"") ->  | U121: =IF(ISNUMBER($R121),DisimulateNexus($K$8:$K$17,N$8:N$17,U$3,U$4),"") ->  | V121: =IF(ISNUMBER($R121),DisimulateNexus($K$8:$K$17,O$8:O$17,V$3,V$4),"") ->  | W121: =IF(ISNUMBER($R121),DisimulateNexus($K$8:$K$17,P$8:P$17,W$3,W$4),"") -> 
A122: 115 | B122: 2015 | C122: 4 | D122: 25 | E122: 1 | F122: 9 | G122: 5 | H122: 6 | I122: 6 | S122: =IF(ISNUMBER($R122),DisimulateNexus($K$8:$K$17,L$8:L$17,S$3,S$4),"") ->  | T122: =IF(ISNUMBER($R122),DisimulateNexus($K$8:$K$17,M$8:M$17,T$3,T$4),"") ->  | U122: =IF(ISNUMBER($R122),DisimulateNexus($K$8:$K$17,N$8:N$17,U$3,U$4),"") ->  | V122: =IF(ISNUMBER($R122),DisimulateNexus($K$8:$K$17,O$8:O$17,V$3,V$4),"") ->  | W122: =IF(ISNUMBER($R122),DisimulateNexus($K$8:$K$17,P$8:P$17,W$3,W$4),"") -> 
A123: 116 | B123: 2015 | C123: 4 | D123: 26 | E123: 9 | F123: 5 | G123: 0 | H123: 3 | I123: 7 | S123: =IF(ISNUMBER($R123),DisimulateNexus($K$8:$K$17,L$8:L$17,S$3,S$4),"") ->  | T123: =IF(ISNUMBER($R123),DisimulateNexus($K$8:$K$17,M$8:M$17,T$3,T$4),"") ->  | U123: =IF(ISNUMBER($R123),DisimulateNexus($K$8:$K$17,N$8:N$17,U$3,U$4),"") ->  | V123: =IF(ISNUMBER($R123),DisimulateNexus($K$8:$K$17,O$8:O$17,V$3,V$4),"") ->  | W123: =IF(ISNUMBER($R123),DisimulateNexus($K$8:$K$17,P$8:P$17,W$3,W$4),"") -> 
A124: 117 | B124: 2015 | C124: 4 | D124: 27 | E124: 8 | F124: 3 | G124: 5 | H124: 4 | I124: 7 | S124: =IF(ISNUMBER($R124),DisimulateNexus($K$8:$K$17,L$8:L$17,S$3,S$4),"") ->  | T124: =IF(ISNUMBER($R124),DisimulateNexus($K$8:$K$17,M$8:M$17,T$3,T$4),"") ->  | U124: =IF(ISNUMBER($R124),DisimulateNexus($K$8:$K$17,N$8:N$17,U$3,U$4),"") ->  | V124: =IF(ISNUMBER($R124),DisimulateNexus($K$8:$K$17,O$8:O$17,V$3,V$4),"") ->  | W124: =IF(ISNUMBER($R124),DisimulateNexus($K$8:$K$17,P$8:P$17,W$3,W$4),"") -> 
A125: 118 | B125: 2015 | C125: 4 | D125: 28 | E125: 2 | F125: 2 | G125: 1 | H125: 7 | I125: 4 | S125: =IF(ISNUMBER($R125),DisimulateNexus($K$8:$K$17,L$8:L$17,S$3,S$4),"") ->  | T125: =IF(ISNUMBER($R125),DisimulateNexus($K$8:$K$17,M$8:M$17,T$3,T$4),"") ->  | U125: =IF(ISNUMBER($R125),DisimulateNexus($K$8:$K$17,N$8:N$17,U$3,U$4),"") ->  | V125: =IF(ISNUMBER($R125),DisimulateNexus($K$8:$K$17,O$8:O$17,V$3,V$4),"") ->  | W125: =IF(ISNUMBER($R125),DisimulateNexus($K$8:$K$17,P$8:P$17,W$3,W$4),"") -> 
A126: 119 | B126: 2015 | C126: 4 | D126: 29 | E126: 1 | F126: 5 | G126: 5 | H126: 5 | I126: 0 | S126: =IF(ISNUMBER($R126),DisimulateNexus($K$8:$K$17,L$8:L$17,S$3,S$4),"") ->  | T126: =IF(ISNUMBER($R126),DisimulateNexus($K$8:$K$17,M$8:M$17,T$3,T$4),"") ->  | U126: =IF(ISNUMBER($R126),DisimulateNexus($K$8:$K$17,N$8:N$17,U$3,U$4),"") ->  | V126: =IF(ISNUMBER($R126),DisimulateNexus($K$8:$K$17,O$8:O$17,V$3,V$4),"") ->  | W126: =IF(ISNUMBER($R126),DisimulateNexus($K$8:$K$17,P$8:P$17,W$3,W$4),"") -> 
A127: 120 | B127: 2015 | C127: 4 | D127: 30 | E127: 8 | F127: 1 | G127: 9 | H127: 3 | I127: 6 | S127: =IF(ISNUMBER($R127),DisimulateNexus($K$8:$K$17,L$8:L$17,S$3,S$4),"") ->  | T127: =IF(ISNUMBER($R127),DisimulateNexus($K$8:$K$17,M$8:M$17,T$3,T$4),"") ->  | U127: =IF(ISNUMBER($R127),DisimulateNexus($K$8:$K$17,N$8:N$17,U$3,U$4),"") ->  | V127: =IF(ISNUMBER($R127),DisimulateNexus($K$8:$K$17,O$8:O$17,V$3,V$4),"") ->  | W127: =IF(ISNUMBER($R127),DisimulateNexus($K$8:$K$17,P$8:P$17,W$3,W$4),"") -> 
A128: 121 | B128: 2015 | C128: 5 | D128: 1 | E128: 8 | F128: 6 | G128: 6 | H128: 3 | I128: 9 | S128: =IF(ISNUMBER($R128),DisimulateNexus($K$8:$K$17,L$8:L$17,S$3,S$4),"") ->  | T128: =IF(ISNUMBER($R128),DisimulateNexus($K$8:$K$17,M$8:M$17,T$3,T$4),"") ->  | U128: =IF(ISNUMBER($R128),DisimulateNexus($K$8:$K$17,N$8:N$17,U$3,U$4),"") ->  | V128: =IF(ISNUMBER($R128),DisimulateNexus($K$8:$K$17,O$8:O$17,V$3,V$4),"") ->  | W128: =IF(ISNUMBER($R128),DisimulateNexus($K$8:$K$17,P$8:P$17,W$3,W$4),"") -> 
A129: 122 | B129: 2015 | C129: 5 | D129: 2 | E129: 3 | F129: 5 | G129: 9 | H129: 6 | I129: 6 | S129: =IF(ISNUMBER($R129),DisimulateNexus($K$8:$K$17,L$8:L$17,S$3,S$4),"") ->  | T129: =IF(ISNUMBER($R129),DisimulateNexus($K$8:$K$17,M$8:M$17,T$3,T$4),"") ->  | U129: =IF(ISNUMBER($R129),DisimulateNexus($K$8:$K$17,N$8:N$17,U$3,U$4),"") ->  | V129: =IF(ISNUMBER($R129),DisimulateNexus($K$8:$K$17,O$8:O$17,V$3,V$4),"") ->  | W129: =IF(ISNUMBER($R129),DisimulateNexus($K$8:$K$17,P$8:P$17,W$3,W$4),"") -> 
A130: 123 | B130: 2015 | C130: 5 | D130: 3 | E130: 3 | F130: 5 | G130: 3 | H130: 6 | I130: 4 | S130: =IF(ISNUMBER($R130),DisimulateNexus($K$8:$K$17,L$8:L$17,S$3,S$4),"") ->  | T130: =IF(ISNUMBER($R130),DisimulateNexus($K$8:$K$17,M$8:M$17,T$3,T$4),"") ->  | U130: =IF(ISNUMBER($R130),DisimulateNexus($K$8:$K$17,N$8:N$17,U$3,U$4),"") ->  | V130: =IF(ISNUMBER($R130),DisimulateNexus($K$8:$K$17,O$8:O$17,V$3,V$4),"") ->  | W130: =IF(ISNUMBER($R130),DisimulateNexus($K$8:$K$17,P$8:P$17,W$3,W$4),"") -> 
A131: 124 | B131: 2015 | C131: 5 | D131: 4 | E131: 9 | F131: 3 | G131: 6 | H131: 9 | I131: 5 | S131: =IF(ISNUMBER($R131),DisimulateNexus($K$8:$K$17,L$8:L$17,S$3,S$4),"") ->  | T131: =IF(ISNUMBER($R131),DisimulateNexus($K$8:$K$17,M$8:M$17,T$3,T$4),"") ->  | U131: =IF(ISNUMBER($R131),DisimulateNexus($K$8:$K$17,N$8:N$17,U$3,U$4),"") ->  | V131: =IF(ISNUMBER($R131),DisimulateNexus($K$8:$K$17,O$8:O$17,V$3,V$4),"") ->  | W131: =IF(ISNUMBER($R131),DisimulateNexus($K$8:$K$17,P$8:P$17,W$3,W$4),"") -> 
A132: 125 | B132: 2015 | C132: 5 | D132: 5 | E132: 3 | F132: 9 | G132: 9 | H132: 2 | I132: 6 | S132: =IF(ISNUMBER($R132),DisimulateNexus($K$8:$K$17,L$8:L$17,S$3,S$4),"") ->  | T132: =IF(ISNUMBER($R132),DisimulateNexus($K$8:$K$17,M$8:M$17,T$3,T$4),"") ->  | U132: =IF(ISNUMBER($R132),DisimulateNexus($K$8:$K$17,N$8:N$17,U$3,U$4),"") ->  | V132: =IF(ISNUMBER($R132),DisimulateNexus($K$8:$K$17,O$8:O$17,V$3,V$4),"") ->  | W132: =IF(ISNUMBER($R132),DisimulateNexus($K$8:$K$17,P$8:P$17,W$3,W$4),"") -> 
A133: 126 | B133: 2015 | C133: 5 | D133: 6 | E133: 9 | F133: 6 | G133: 1 | H133: 7 | I133: 0 | S133: =IF(ISNUMBER($R133),DisimulateNexus($K$8:$K$17,L$8:L$17,S$3,S$4),"") ->  | T133: =IF(ISNUMBER($R133),DisimulateNexus($K$8:$K$17,M$8:M$17,T$3,T$4),"") ->  | U133: =IF(ISNUMBER($R133),DisimulateNexus($K$8:$K$17,N$8:N$17,U$3,U$4),"") ->  | V133: =IF(ISNUMBER($R133),DisimulateNexus($K$8:$K$17,O$8:O$17,V$3,V$4),"") ->  | W133: =IF(ISNUMBER($R133),DisimulateNexus($K$8:$K$17,P$8:P$17,W$3,W$4),"") -> 
A134: 127 | B134: 2015 | C134: 5 | D134: 7 | E134: 2 | F134: 2 | G134: 6 | H134: 9 | I134: 3 | S134: =IF(ISNUMBER($R134),DisimulateNexus($K$8:$K$17,L$8:L$17,S$3,S$4),"") ->  | T134: =IF(ISNUMBER($R134),DisimulateNexus($K$8:$K$17,M$8:M$17,T$3,T$4),"") ->  | U134: =IF(ISNUMBER($R134),DisimulateNexus($K$8:$K$17,N$8:N$17,U$3,U$4),"") ->  | V134: =IF(ISNUMBER($R134),DisimulateNexus($K$8:$K$17,O$8:O$17,V$3,V$4),"") ->  | W134: =IF(ISNUMBER($R134),DisimulateNexus($K$8:$K$17,P$8:P$17,W$3,W$4),"") -> 
A135: 128 | B135: 2015 | C135: 5 | D135: 8 | E135: 0 | F135: 7 | G135: 5 | H135: 9 | I135: 0 | S135: =IF(ISNUMBER($R135),DisimulateNexus($K$8:$K$17,L$8:L$17,S$3,S$4),"") ->  | T135: =IF(ISNUMBER($R135),DisimulateNexus($K$8:$K$17,M$8:M$17,T$3,T$4),"") ->  | U135: =IF(ISNUMBER($R135),DisimulateNexus($K$8:$K$17,N$8:N$17,U$3,U$4),"") ->  | V135: =IF(ISNUMBER($R135),DisimulateNexus($K$8:$K$17,O$8:O$17,V$3,V$4),"") ->  | W135: =IF(ISNUMBER($R135),DisimulateNexus($K$8:$K$17,P$8:P$17,W$3,W$4),"") -> 
A136: 129 | B136: 2015 | C136: 5 | D136: 9 | E136: 1 | F136: 8 | G136: 7 | H136: 4 | I136: 9 | S136: =IF(ISNUMBER($R136),DisimulateNexus($K$8:$K$17,L$8:L$17,S$3,S$4),"") ->  | T136: =IF(ISNUMBER($R136),DisimulateNexus($K$8:$K$17,M$8:M$17,T$3,T$4),"") ->  | U136: =IF(ISNUMBER($R136),DisimulateNexus($K$8:$K$17,N$8:N$17,U$3,U$4),"") ->  | V136: =IF(ISNUMBER($R136),DisimulateNexus($K$8:$K$17,O$8:O$17,V$3,V$4),"") ->  | W136: =IF(ISNUMBER($R136),DisimulateNexus($K$8:$K$17,P$8:P$17,W$3,W$4),"") -> 
A137: 130 | B137: 2015 | C137: 5 | D137: 10 | E137: 4 | F137: 5 | G137: 6 | H137: 2 | I137: 6 | R137: =IF(ISNUMBER(R136),IF(R136+1<=R$6,R136+1,""),"") ->  | S137: =IF(ISNUMBER($R137),DisimulateNexus($K$8:$K$17,L$8:L$17,S$3,S$4),"") ->  | T137: =IF(ISNUMBER($R137),DisimulateNexus($K$8:$K$17,M$8:M$17,T$3,T$4),"") ->  | U137: =IF(ISNUMBER($R137),DisimulateNexus($K$8:$K$17,N$8:N$17,U$3,U$4),"") ->  | V137: =IF(ISNUMBER($R137),DisimulateNexus($K$8:$K$17,O$8:O$17,V$3,V$4),"") ->  | W137: =IF(ISNUMBER($R137),DisimulateNexus($K$8:$K$17,P$8:P$17,W$3,W$4),"") -> 
A138: 131 | B138: 2015 | C138: 5 | D138: 11 | E138: 3 | F138: 5 | G138: 7 | H138: 7 | I138: 0 | S138: =IF(ISNUMBER($R138),DisimulateNexus($K$8:$K$17,L$8:L$17,S$3,S$4),"") ->  | T138: =IF(ISNUMBER($R138),DisimulateNexus($K$8:$K$17,M$8:M$17,T$3,T$4),"") ->  | U138: =IF(ISNUMBER($R138),DisimulateNexus($K$8:$K$17,N$8:N$17,U$3,U$4),"") ->  | V138: =IF(ISNUMBER($R138),DisimulateNexus($K$8:$K$17,O$8:O$17,V$3,V$4),"") ->  | W138: =IF(ISNUMBER($R138),DisimulateNexus($K$8:$K$17,P$8:P$17,W$3,W$4),"") -> 
A139: 132 | B139: 2015 | C139: 5 | D139: 12 | E139: 0 | F139: 2 | G139: 2 | H139: 8 | I139: 4 | S139: =IF(ISNUMBER($R139),DisimulateNexus($K$8:$K$17,L$8:L$17,S$3,S$4),"") ->  | T139: =IF(ISNUMBER($R139),DisimulateNexus($K$8:$K$17,M$8:M$17,T$3,T$4),"") ->  | U139: =IF(ISNUMBER($R139),DisimulateNexus($K$8:$K$17,N$8:N$17,U$3,U$4),"") ->  | V139: =IF(ISNUMBER($R139),DisimulateNexus($K$8:$K$17,O$8:O$17,V$3,V$4),"") ->  | W139: =IF(ISNUMBER($R139),DisimulateNexus($K$8:$K$17,P$8:P$17,W$3,W$4),"") -> 
A140: 133 | B140: 2015 | C140: 5 | D140: 13 | E140: 0 | F140: 0 | G140: 7 | H140: 4 | I140: 4 | S140: =IF(ISNUMBER($R140),DisimulateNexus($K$8:$K$17,L$8:L$17,S$3,S$4),"") ->  | T140: =IF(ISNUMBER($R140),DisimulateNexus($K$8:$K$17,M$8:M$17,T$3,T$4),"") ->  | U140: =IF(ISNUMBER($R140),DisimulateNexus($K$8:$K$17,N$8:N$17,U$3,U$4),"") ->  | V140: =IF(ISNUMBER($R140),DisimulateNexus($K$8:$K$17,O$8:O$17,V$3,V$4),"") ->  | W140: =IF(ISNUMBER($R140),DisimulateNexus($K$8:$K$17,P$8:P$17,W$3,W$4),"") -> 
A141: 134 | B141: 2015 | C141: 5 | D141: 14 | E141: 0 | F141: 4 | G141: 8 | H141: 7 | I141: 9 | S141: =IF(ISNUMBER($R141),DisimulateNexus($K$8:$K$17,L$8:L$17,S$3,S$4),"") ->  | T141: =IF(ISNUMBER($R141),DisimulateNexus($K$8:$K$17,M$8:M$17,T$3,T$4),"") ->  | U141: =IF(ISNUMBER($R141),DisimulateNexus($K$8:$K$17,N$8:N$17,U$3,U$4),"") ->  | V141: =IF(ISNUMBER($R141),DisimulateNexus($K$8:$K$17,O$8:O$17,V$3,V$4),"") ->  | W141: =IF(ISNUMBER($R141),DisimulateNexus($K$8:$K$17,P$8:P$17,W$3,W$4),"") -> 
A142: 135 | B142: 2015 | C142: 5 | D142: 15 | E142: 6 | F142: 8 | G142: 1 | H142: 6 | I142: 9 | S142: =IF(ISNUMBER($R142),DisimulateNexus($K$8:$K$17,L$8:L$17,S$3,S$4),"") ->  | T142: =IF(ISNUMBER($R142),DisimulateNexus($K$8:$K$17,M$8:M$17,T$3,T$4),"") ->  | U142: =IF(ISNUMBER($R142),DisimulateNexus($K$8:$K$17,N$8:N$17,U$3,U$4),"") ->  | V142: =IF(ISNUMBER($R142),DisimulateNexus($K$8:$K$17,O$8:O$17,V$3,V$4),"") ->  | W142: =IF(ISNUMBER($R142),DisimulateNexus($K$8:$K$17,P$8:P$17,W$3,W$4),"") -> 
A143: 136 | B143: 2015 | C143: 5 | D143: 16 | E143: 4 | F143: 6 | G143: 9 | H143: 4 | I143: 7 | S143: =IF(ISNUMBER($R143),DisimulateNexus($K$8:$K$17,L$8:L$17,S$3,S$4),"") ->  | T143: =IF(ISNUMBER($R143),DisimulateNexus($K$8:$K$17,M$8:M$17,T$3,T$4),"") ->  | U143: =IF(ISNUMBER($R143),DisimulateNexus($K$8:$K$17,N$8:N$17,U$3,U$4),"") ->  | V143: =IF(ISNUMBER($R143),DisimulateNexus($K$8:$K$17,O$8:O$17,V$3,V$4),"") ->  | W143: =IF(ISNUMBER($R143),DisimulateNexus($K$8:$K$17,P$8:P$17,W$3,W$4),"") -> 
A144: 137 | B144: 2015 | C144: 5 | D144: 17 | E144: 6 | F144: 3 | G144: 6 | H144: 0 | I144: 7 | S144: =IF(ISNUMBER($R144),DisimulateNexus($K$8:$K$17,L$8:L$17,S$3,S$4),"") ->  | T144: =IF(ISNUMBER($R144),DisimulateNexus($K$8:$K$17,M$8:M$17,T$3,T$4),"") ->  | U144: =IF(ISNUMBER($R144),DisimulateNexus($K$8:$K$17,N$8:N$17,U$3,U$4),"") ->  | V144: =IF(ISNUMBER($R144),DisimulateNexus($K$8:$K$17,O$8:O$17,V$3,V$4),"") ->  | W144: =IF(ISNUMBER($R144),DisimulateNexus($K$8:$K$17,P$8:P$17,W$3,W$4),"") -> 
A145: 138 | B145: 2015 | C145: 5 | D145: 18 | E145: 5 | F145: 7 | G145: 1 | H145: 6 | I145: 0 | S145: =IF(ISNUMBER($R145),DisimulateNexus($K$8:$K$17,L$8:L$17,S$3,S$4),"") ->  | T145: =IF(ISNUMBER($R145),DisimulateNexus($K$8:$K$17,M$8:M$17,T$3,T$4),"") ->  | U145: =IF(ISNUMBER($R145),DisimulateNexus($K$8:$K$17,N$8:N$17,U$3,U$4),"") ->  | V145: =IF(ISNUMBER($R145),DisimulateNexus($K$8:$K$17,O$8:O$17,V$3,V$4),"") ->  | W145: =IF(ISNUMBER($R145),DisimulateNexus($K$8:$K$17,P$8:P$17,W$3,W$4),"") -> 
A146: 139 | B146: 2015 | C146: 5 | D146: 19 | E146: 7 | F146: 8 | G146: 9 | H146: 3 | I146: 8 | S146: =IF(ISNUMBER($R146),DisimulateNexus($K$8:$K$17,L$8:L$17,S$3,S$4),"") ->  | T146: =IF(ISNUMBER($R146),DisimulateNexus($K$8:$K$17,M$8:M$17,T$3,T$4),"") ->  | U146: =IF(ISNUMBER($R146),DisimulateNexus($K$8:$K$17,N$8:N$17,U$3,U$4),"") ->  | V146: =IF(ISNUMBER($R146),DisimulateNexus($K$8:$K$17,O$8:O$17,V$3,V$4),"") ->  | W146: =IF(ISNUMBER($R146),DisimulateNexus($K$8:$K$17,P$8:P$17,W$3,W$4),"") -> 
A147: 140 | B147: 2015 | C147: 5 | D147: 20 | E147: 7 | F147: 3 | G147: 5 | H147: 3 | I147: 3 | S147: =IF(ISNUMBER($R147),DisimulateNexus($K$8:$K$17,L$8:L$17,S$3,S$4),"") ->  | T147: =IF(ISNUMBER($R147),DisimulateNexus($K$8:$K$17,M$8:M$17,T$3,T$4),"") ->  | U147: =IF(ISNUMBER($R147),DisimulateNexus($K$8:$K$17,N$8:N$17,U$3,U$4),"") ->  | V147: =IF(ISNUMBER($R147),DisimulateNexus($K$8:$K$17,O$8:O$17,V$3,V$4),"") ->  | W147: =IF(ISNUMBER($R147),DisimulateNexus($K$8:$K$17,P$8:P$17,W$3,W$4),"") -> 
A148: 141 | B148: 2015 | C148: 5 | D148: 21 | E148: 8 | F148: 2 | G148: 3 | H148: 3 | I148: 6 | S148: =IF(ISNUMBER($R148),DisimulateNexus($K$8:$K$17,L$8:L$17,S$3,S$4),"") ->  | T148: =IF(ISNUMBER($R148),DisimulateNexus($K$8:$K$17,M$8:M$17,T$3,T$4),"") ->  | U148: =IF(ISNUMBER($R148),DisimulateNexus($K$8:$K$17,N$8:N$17,U$3,U$4),"") ->  | V148: =IF(ISNUMBER($R148),DisimulateNexus($K$8:$K$17,O$8:O$17,V$3,V$4),"") ->  | W148: =IF(ISNUMBER($R148),DisimulateNexus($K$8:$K$17,P$8:P$17,W$3,W$4),"") -> 
A149: 142 | B149: 2015 | C149: 5 | D149: 22 | E149: 6 | F149: 3 | G149: 9 | H149: 8 | I149: 1 | S149: =IF(ISNUMBER($R149),DisimulateNexus($K$8:$K$17,L$8:L$17,S$3,S$4),"") ->  | T149: =IF(ISNUMBER($R149),DisimulateNexus($K$8:$K$17,M$8:M$17,T$3,T$4),"") ->  | U149: =IF(ISNUMBER($R149),DisimulateNexus($K$8:$K$17,N$8:N$17,U$3,U$4),"") ->  | V149: =IF(ISNUMBER($R149),DisimulateNexus($K$8:$K$17,O$8:O$17,V$3,V$4),"") ->  | W149: =IF(ISNUMBER($R149),DisimulateNexus($K$8:$K$17,P$8:P$17,W$3,W$4),"") -> 
A150: 143 | B150: 2015 | C150: 5 | D150: 23 | E150: 3 | F150: 0 | G150: 7 | H150: 4 | I150: 4 | S150: =IF(ISNUMBER($R150),DisimulateNexus($K$8:$K$17,L$8:L$17,S$3,S$4),"") ->  | T150: =IF(ISNUMBER($R150),DisimulateNexus($K$8:$K$17,M$8:M$17,T$3,T$4),"") ->  | U150: =IF(ISNUMBER($R150),DisimulateNexus($K$8:$K$17,N$8:N$17,U$3,U$4),"") ->  | V150: =IF(ISNUMBER($R150),DisimulateNexus($K$8:$K$17,O$8:O$17,V$3,V$4),"") ->  | W150: =IF(ISNUMBER($R150),DisimulateNexus($K$8:$K$17,P$8:P$17,W$3,W$4),"") -> 
A151: 144 | B151: 2015 | C151: 5 | D151: 24 | E151: 5 | F151: 7 | G151: 0 | H151: 4 | I151: 2 | S151: =IF(ISNUMBER($R151),DisimulateNexus($K$8:$K$17,L$8:L$17,S$3,S$4),"") ->  | T151: =IF(ISNUMBER($R151),DisimulateNexus($K$8:$K$17,M$8:M$17,T$3,T$4),"") ->  | U151: =IF(ISNUMBER($R151),DisimulateNexus($K$8:$K$17,N$8:N$17,U$3,U$4),"") ->  | V151: =IF(ISNUMBER($R151),DisimulateNexus($K$8:$K$17,O$8:O$17,V$3,V$4),"") ->  | W151: =IF(ISNUMBER($R151),DisimulateNexus($K$8:$K$17,P$8:P$17,W$3,W$4),"") -> 
A152: 145 | B152: 2015 | C152: 5 | D152: 25 | E152: 5 | F152: 9 | G152: 9 | H152: 7 | I152: 4 | S152: =IF(ISNUMBER($R152),DisimulateNexus($K$8:$K$17,L$8:L$17,S$3,S$4),"") ->  | T152: =IF(ISNUMBER($R152),DisimulateNexus($K$8:$K$17,M$8:M$17,T$3,T$4),"") ->  | U152: =IF(ISNUMBER($R152),DisimulateNexus($K$8:$K$17,N$8:N$17,U$3,U$4),"") ->  | V152: =IF(ISNUMBER($R152),DisimulateNexus($K$8:$K$17,O$8:O$17,V$3,V$4),"") ->  | W152: =IF(ISNUMBER($R152),DisimulateNexus($K$8:$K$17,P$8:P$17,W$3,W$4),"") -> 
A153: 146 | B153: 2015 | C153: 5 | D153: 26 | E153: 6 | F153: 4 | G153: 3 | H153: 1 | I153: 8 | S153: =IF(ISNUMBER($R153),DisimulateNexus($K$8:$K$17,L$8:L$17,S$3,S$4),"") ->  | T153: =IF(ISNUMBER($R153),DisimulateNexus($K$8:$K$17,M$8:M$17,T$3,T$4),"") ->  | U153: =IF(ISNUMBER($R153),DisimulateNexus($K$8:$K$17,N$8:N$17,U$3,U$4),"") ->  | V153: =IF(ISNUMBER($R153),DisimulateNexus($K$8:$K$17,O$8:O$17,V$3,V$4),"") ->  | W153: =IF(ISNUMBER($R153),DisimulateNexus($K$8:$K$17,P$8:P$17,W$3,W$4),"") -> 
A154: 147 | B154: 2015 | C154: 5 | D154: 27 | E154: 6 | F154: 5 | G154: 0 | H154: 1 | I154: 9 | S154: =IF(ISNUMBER($R154),DisimulateNexus($K$8:$K$17,L$8:L$17,S$3,S$4),"") ->  | T154: =IF(ISNUMBER($R154),DisimulateNexus($K$8:$K$17,M$8:M$17,T$3,T$4),"") ->  | U154: =IF(ISNUMBER($R154),DisimulateNexus($K$8:$K$17,N$8:N$17,U$3,U$4),"") ->  | V154: =IF(ISNUMBER($R154),DisimulateNexus($K$8:$K$17,O$8:O$17,V$3,V$4),"") ->  | W154: =IF(ISNUMBER($R154),DisimulateNexus($K$8:$K$17,P$8:P$17,W$3,W$4),"") -> 
A155: 148 | B155: 2015 | C155: 5 | D155: 28 | E155: 6 | F155: 7 | G155: 8 | H155: 5 | I155: 4 | S155: =IF(ISNUMBER($R155),DisimulateNexus($K$8:$K$17,L$8:L$17,S$3,S$4),"") ->  | T155: =IF(ISNUMBER($R155),DisimulateNexus($K$8:$K$17,M$8:M$17,T$3,T$4),"") ->  | U155: =IF(ISNUMBER($R155),DisimulateNexus($K$8:$K$17,N$8:N$17,U$3,U$4),"") ->  | V155: =IF(ISNUMBER($R155),DisimulateNexus($K$8:$K$17,O$8:O$17,V$3,V$4),"") ->  | W155: =IF(ISNUMBER($R155),DisimulateNexus($K$8:$K$17,P$8:P$17,W$3,W$4),"") -> 
A156: 149 | B156: 2015 | C156: 5 | D156: 29 | E156: 7 | F156: 8 | G156: 2 | H156: 2 | I156: 0 | S156: =IF(ISNUMBER($R156),DisimulateNexus($K$8:$K$17,L$8:L$17,S$3,S$4),"") ->  | T156: =IF(ISNUMBER($R156),DisimulateNexus($K$8:$K$17,M$8:M$17,T$3,T$4),"") ->  | U156: =IF(ISNUMBER($R156),DisimulateNexus($K$8:$K$17,N$8:N$17,U$3,U$4),"") ->  | V156: =IF(ISNUMBER($R156),DisimulateNexus($K$8:$K$17,O$8:O$17,V$3,V$4),"") ->  | W156: =IF(ISNUMBER($R156),DisimulateNexus($K$8:$K$17,P$8:P$17,W$3,W$4),"") -> 
A157: 150 | B157: 2015 | C157: 5 | D157: 30 | E157: 7 | F157: 7 | G157: 0 | H157: 9 | I157: 8 | S157: =IF(ISNUMBER($R157),DisimulateNexus($K$8:$K$17,L$8:L$17,S$3,S$4),"") ->  | T157: =IF(ISNUMBER($R157),DisimulateNexus($K$8:$K$17,M$8:M$17,T$3,T$4),"") ->  | U157: =IF(ISNUMBER($R157),DisimulateNexus($K$8:$K$17,N$8:N$17,U$3,U$4),"") ->  | V157: =IF(ISNUMBER($R157),DisimulateNexus($K$8:$K$17,O$8:O$17,V$3,V$4),"") ->  | W157: =IF(ISNUMBER($R157),DisimulateNexus($K$8:$K$17,P$8:P$17,W$3,W$4),"") -> 
A158: 151 | B158: 2015 | C158: 5 | D158: 31 | E158: 1 | F158: 8 | G158: 3 | H158: 6 | I158: 7 | S158: =IF(ISNUMBER($R158),DisimulateNexus($K$8:$K$17,L$8:L$17,S$3,S$4),"") ->  | T158: =IF(ISNUMBER($R158),DisimulateNexus($K$8:$K$17,M$8:M$17,T$3,T$4),"") ->  | U158: =IF(ISNUMBER($R158),DisimulateNexus($K$8:$K$17,N$8:N$17,U$3,U$4),"") ->  | V158: =IF(ISNUMBER($R158),DisimulateNexus($K$8:$K$17,O$8:O$17,V$3,V$4),"") ->  | W158: =IF(ISNUMBER($R158),DisimulateNexus($K$8:$K$17,P$8:P$17,W$3,W$4),"") -> 
A159: 152 | B159: 2015 | C159: 6 | D159: 1 | E159: 6 | F159: 3 | G159: 3 | H159: 6 | I159: 0 | S159: =IF(ISNUMBER($R159),DisimulateNexus($K$8:$K$17,L$8:L$17,S$3,S$4),"") ->  | T159: =IF(ISNUMBER($R159),DisimulateNexus($K$8:$K$17,M$8:M$17,T$3,T$4),"") ->  | U159: =IF(ISNUMBER($R159),DisimulateNexus($K$8:$K$17,N$8:N$17,U$3,U$4),"") ->  | V159: =IF(ISNUMBER($R159),DisimulateNexus($K$8:$K$17,O$8:O$17,V$3,V$4),"") ->  | W159: =IF(ISNUMBER($R159),DisimulateNexus($K$8:$K$17,P$8:P$17,W$3,W$4),"") -> 
A160: 153 | B160: 2015 | C160: 6 | D160: 2 | E160: 0 | F160: 8 | G160: 1 | H160: 5 | I160: 8 | S160: =IF(ISNUMBER($R160),DisimulateNexus($K$8:$K$17,L$8:L$17,S$3,S$4),"") ->  | T160: =IF(ISNUMBER($R160),DisimulateNexus($K$8:$K$17,M$8:M$17,T$3,T$4),"") ->  | U160: =IF(ISNUMBER($R160),DisimulateNexus($K$8:$K$17,N$8:N$17,U$3,U$4),"") ->  | V160: =IF(ISNUMBER($R160),DisimulateNexus($K$8:$K$17,O$8:O$17,V$3,V$4),"") ->  | W160: =IF(ISNUMBER($R160),DisimulateNexus($K$8:$K$17,P$8:P$17,W$3,W$4),"") -> 
A161: 154 | B161: 2015 | C161: 6 | D161: 3 | E161: 1 | F161: 2 | G161: 4 | H161: 5 | I161: 7 | S161: =IF(ISNUMBER($R161),DisimulateNexus($K$8:$K$17,L$8:L$17,S$3,S$4),"") ->  | T161: =IF(ISNUMBER($R161),DisimulateNexus($K$8:$K$17,M$8:M$17,T$3,T$4),"") ->  | U161: =IF(ISNUMBER($R161),DisimulateNexus($K$8:$K$17,N$8:N$17,U$3,U$4),"") ->  | V161: =IF(ISNUMBER($R161),DisimulateNexus($K$8:$K$17,O$8:O$17,V$3,V$4),"") ->  | W161: =IF(ISNUMBER($R161),DisimulateNexus($K$8:$K$17,P$8:P$17,W$3,W$4),"") -> 
A162: 155 | B162: 2015 | C162: 6 | D162: 4 | E162: 6 | F162: 6 | G162: 6 | H162: 2 | I162: 5 | S162: =IF(ISNUMBER($R162),DisimulateNexus($K$8:$K$17,L$8:L$17,S$3,S$4),"") ->  | T162: =IF(ISNUMBER($R162),DisimulateNexus($K$8:$K$17,M$8:M$17,T$3,T$4),"") ->  | U162: =IF(ISNUMBER($R162),DisimulateNexus($K$8:$K$17,N$8:N$17,U$3,U$4),"") ->  | V162: =IF(ISNUMBER($R162),DisimulateNexus($K$8:$K$17,O$8:O$17,V$3,V$4),"") ->  | W162: =IF(ISNUMBER($R162),DisimulateNexus($K$8:$K$17,P$8:P$17,W$3,W$4),"") -> 
A163: 156 | B163: 2015 | C163: 6 | D163: 5 | E163: 6 | F163: 3 | G163: 5 | H163: 9 | I163: 2 | S163: =IF(ISNUMBER($R163),DisimulateNexus($K$8:$K$17,L$8:L$17,S$3,S$4),"") ->  | T163: =IF(ISNUMBER($R163),DisimulateNexus($K$8:$K$17,M$8:M$17,T$3,T$4),"") ->  | U163: =IF(ISNUMBER($R163),DisimulateNexus($K$8:$K$17,N$8:N$17,U$3,U$4),"") ->  | V163: =IF(ISNUMBER($R163),DisimulateNexus($K$8:$K$17,O$8:O$17,V$3,V$4),"") ->  | W163: =IF(ISNUMBER($R163),DisimulateNexus($K$8:$K$17,P$8:P$17,W$3,W$4),"") -> 
A164: 157 | B164: 2015 | C164: 6 | D164: 6 | E164: 2 | F164: 9 | G164: 7 | H164: 5 | I164: 5 | S164: =IF(ISNUMBER($R164),DisimulateNexus($K$8:$K$17,L$8:L$17,S$3,S$4),"") ->  | T164: =IF(ISNUMBER($R164),DisimulateNexus($K$8:$K$17,M$8:M$17,T$3,T$4),"") ->  | U164: =IF(ISNUMBER($R164),DisimulateNexus($K$8:$K$17,N$8:N$17,U$3,U$4),"") ->  | V164: =IF(ISNUMBER($R164),DisimulateNexus($K$8:$K$17,O$8:O$17,V$3,V$4),"") ->  | W164: =IF(ISNUMBER($R164),DisimulateNexus($K$8:$K$17,P$8:P$17,W$3,W$4),"") -> 
A165: 158 | B165: 2015 | C165: 6 | D165: 7 | E165: 1 | F165: 3 | G165: 4 | H165: 2 | I165: 6 | S165: =IF(ISNUMBER($R165),DisimulateNexus($K$8:$K$17,L$8:L$17,S$3,S$4),"") ->  | T165: =IF(ISNUMBER($R165),DisimulateNexus($K$8:$K$17,M$8:M$17,T$3,T$4),"") ->  | U165: =IF(ISNUMBER($R165),DisimulateNexus($K$8:$K$17,N$8:N$17,U$3,U$4),"") ->  | V165: =IF(ISNUMBER($R165),DisimulateNexus($K$8:$K$17,O$8:O$17,V$3,V$4),"") ->  | W165: =IF(ISNUMBER($R165),DisimulateNexus($K$8:$K$17,P$8:P$17,W$3,W$4),"") -> 
A166: 159 | B166: 2015 | C166: 6 | D166: 8 | E166: 6 | F166: 0 | G166: 9 | H166: 2 | I166: 6 | S166: =IF(ISNUMBER($R166),DisimulateNexus($K$8:$K$17,L$8:L$17,S$3,S$4),"") ->  | T166: =IF(ISNUMBER($R166),DisimulateNexus($K$8:$K$17,M$8:M$17,T$3,T$4),"") ->  | U166: =IF(ISNUMBER($R166),DisimulateNexus($K$8:$K$17,N$8:N$17,U$3,U$4),"") ->  | V166: =IF(ISNUMBER($R166),DisimulateNexus($K$8:$K$17,O$8:O$17,V$3,V$4),"") ->  | W166: =IF(ISNUMBER($R166),DisimulateNexus($K$8:$K$17,P$8:P$17,W$3,W$4),"") -> 
A167: 160 | B167: 2015 | C167: 6 | D167: 9 | E167: 4 | F167: 2 | G167: 8 | H167: 7 | I167: 5 | S167: =IF(ISNUMBER($R167),DisimulateNexus($K$8:$K$17,L$8:L$17,S$3,S$4),"") ->  | T167: =IF(ISNUMBER($R167),DisimulateNexus($K$8:$K$17,M$8:M$17,T$3,T$4),"") ->  | U167: =IF(ISNUMBER($R167),DisimulateNexus($K$8:$K$17,N$8:N$17,U$3,U$4),"") ->  | V167: =IF(ISNUMBER($R167),DisimulateNexus($K$8:$K$17,O$8:O$17,V$3,V$4),"") ->  | W167: =IF(ISNUMBER($R167),DisimulateNexus($K$8:$K$17,P$8:P$17,W$3,W$4),"") -> 
A168: 161 | B168: 2015 | C168: 6 | D168: 10 | E168: 2 | F168: 5 | G168: 3 | H168: 6 | I168: 0 | S168: =IF(ISNUMBER($R168),DisimulateNexus($K$8:$K$17,L$8:L$17,S$3,S$4),"") ->  | T168: =IF(ISNUMBER($R168),DisimulateNexus($K$8:$K$17,M$8:M$17,T$3,T$4),"") ->  | U168: =IF(ISNUMBER($R168),DisimulateNexus($K$8:$K$17,N$8:N$17,U$3,U$4),"") ->  | V168: =IF(ISNUMBER($R168),DisimulateNexus($K$8:$K$17,O$8:O$17,V$3,V$4),"") ->  | W168: =IF(ISNUMBER($R168),DisimulateNexus($K$8:$K$17,P$8:P$17,W$3,W$4),"") -> 
A169: 162 | B169: 2015 | C169: 6 | D169: 11 | E169: 5 | F169: 7 | G169: 1 | H169: 8 | I169: 6 | S169: =IF(ISNUMBER($R169),DisimulateNexus($K$8:$K$17,L$8:L$17,S$3,S$4),"") ->  | T169: =IF(ISNUMBER($R169),DisimulateNexus($K$8:$K$17,M$8:M$17,T$3,T$4),"") ->  | U169: =IF(ISNUMBER($R169),DisimulateNexus($K$8:$K$17,N$8:N$17,U$3,U$4),"") ->  | V169: =IF(ISNUMBER($R169),DisimulateNexus($K$8:$K$17,O$8:O$17,V$3,V$4),"") ->  | W169: =IF(ISNUMBER($R169),DisimulateNexus($K$8:$K$17,P$8:P$17,W$3,W$4),"") -> 
A170: 163 | B170: 2015 | C170: 6 | D170: 12 | E170: 6 | F170: 4 | G170: 4 | H170: 1 | I170: 7 | S170: =IF(ISNUMBER($R170),DisimulateNexus($K$8:$K$17,L$8:L$17,S$3,S$4),"") ->  | T170: =IF(ISNUMBER($R170),DisimulateNexus($K$8:$K$17,M$8:M$17,T$3,T$4),"") ->  | U170: =IF(ISNUMBER($R170),DisimulateNexus($K$8:$K$17,N$8:N$17,U$3,U$4),"") ->  | V170: =IF(ISNUMBER($R170),DisimulateNexus($K$8:$K$17,O$8:O$17,V$3,V$4),"") ->  | W170: =IF(ISNUMBER($R170),DisimulateNexus($K$8:$K$17,P$8:P$17,W$3,W$4),"") -> 
A171: 164 | B171: 2015 | C171: 6 | D171: 13 | E171: 2 | F171: 2 | G171: 4 | H171: 7 | I171: 9 | S171: =IF(ISNUMBER($R171),DisimulateNexus($K$8:$K$17,L$8:L$17,S$3,S$4),"") ->  | T171: =IF(ISNUMBER($R171),DisimulateNexus($K$8:$K$17,M$8:M$17,T$3,T$4),"") ->  | U171: =IF(ISNUMBER($R171),DisimulateNexus($K$8:$K$17,N$8:N$17,U$3,U$4),"") ->  | V171: =IF(ISNUMBER($R171),DisimulateNexus($K$8:$K$17,O$8:O$17,V$3,V$4),"") ->  | W171: =IF(ISNUMBER($R171),DisimulateNexus($K$8:$K$17,P$8:P$17,W$3,W$4),"") -> 
A172: 165 | B172: 2015 | C172: 6 | D172: 14 | E172: 1 | F172: 3 | G172: 1 | H172: 4 | I172: 9 | S172: =IF(ISNUMBER($R172),DisimulateNexus($K$8:$K$17,L$8:L$17,S$3,S$4),"") ->  | T172: =IF(ISNUMBER($R172),DisimulateNexus($K$8:$K$17,M$8:M$17,T$3,T$4),"") ->  | U172: =IF(ISNUMBER($R172),DisimulateNexus($K$8:$K$17,N$8:N$17,U$3,U$4),"") ->  | V172: =IF(ISNUMBER($R172),DisimulateNexus($K$8:$K$17,O$8:O$17,V$3,V$4),"") ->  | W172: =IF(ISNUMBER($R172),DisimulateNexus($K$8:$K$17,P$8:P$17,W$3,W$4),"") -> 
A173: 166 | B173: 2015 | C173: 6 | D173: 15 | E173: 1 | F173: 8 | G173: 7 | H173: 0 | I173: 2 | S173: =IF(ISNUMBER($R173),DisimulateNexus($K$8:$K$17,L$8:L$17,S$3,S$4),"") ->  | T173: =IF(ISNUMBER($R173),DisimulateNexus($K$8:$K$17,M$8:M$17,T$3,T$4),"") ->  | U173: =IF(ISNUMBER($R173),DisimulateNexus($K$8:$K$17,N$8:N$17,U$3,U$4),"") ->  | V173: =IF(ISNUMBER($R173),DisimulateNexus($K$8:$K$17,O$8:O$17,V$3,V$4),"") ->  | W173: =IF(ISNUMBER($R173),DisimulateNexus($K$8:$K$17,P$8:P$17,W$3,W$4),"") -> 
A174: 167 | B174: 2015 | C174: 6 | D174: 16 | E174: 3 | F174: 9 | G174: 0 | H174: 3 | I174: 1 | S174: =IF(ISNUMBER($R174),DisimulateNexus($K$8:$K$17,L$8:L$17,S$3,S$4),"") ->  | T174: =IF(ISNUMBER($R174),DisimulateNexus($K$8:$K$17,M$8:M$17,T$3,T$4),"") ->  | U174: =IF(ISNUMBER($R174),DisimulateNexus($K$8:$K$17,N$8:N$17,U$3,U$4),"") ->  | V174: =IF(ISNUMBER($R174),DisimulateNexus($K$8:$K$17,O$8:O$17,V$3,V$4),"") ->  | W174: =IF(ISNUMBER($R174),DisimulateNexus($K$8:$K$17,P$8:P$17,W$3,W$4),"") -> 
A175: 168 | B175: 2015 | C175: 6 | D175: 17 | E175: 3 | F175: 1 | G175: 0 | H175: 0 | I175: 4 | S175: =IF(ISNUMBER($R175),DisimulateNexus($K$8:$K$17,L$8:L$17,S$3,S$4),"") ->  | T175: =IF(ISNUMBER($R175),DisimulateNexus($K$8:$K$17,M$8:M$17,T$3,T$4),"") ->  | U175: =IF(ISNUMBER($R175),DisimulateNexus($K$8:$K$17,N$8:N$17,U$3,U$4),"") ->  | V175: =IF(ISNUMBER($R175),DisimulateNexus($K$8:$K$17,O$8:O$17,V$3,V$4),"") ->  | W175: =IF(ISNUMBER($R175),DisimulateNexus($K$8:$K$17,P$8:P$17,W$3,W$4),"") -> 
A176: 169 | B176: 2015 | C176: 6 | D176: 18 | E176: 1 | F176: 3 | G176: 6 | H176: 1 | I176: 4 | S176: =IF(ISNUMBER($R176),DisimulateNexus($K$8:$K$17,L$8:L$17,S$3,S$4),"") ->  | T176: =IF(ISNUMBER($R176),DisimulateNexus($K$8:$K$17,M$8:M$17,T$3,T$4),"") ->  | U176: =IF(ISNUMBER($R176),DisimulateNexus($K$8:$K$17,N$8:N$17,U$3,U$4),"") ->  | V176: =IF(ISNUMBER($R176),DisimulateNexus($K$8:$K$17,O$8:O$17,V$3,V$4),"") ->  | W176: =IF(ISNUMBER($R176),DisimulateNexus($K$8:$K$17,P$8:P$17,W$3,W$4),"") -> 
A177: 170 | B177: 2015 | C177: 6 | D177: 19 | E177: 9 | F177: 8 | G177: 1 | H177: 4 | I177: 6 | S177: =IF(ISNUMBER($R177),DisimulateNexus($K$8:$K$17,L$8:L$17,S$3,S$4),"") ->  | T177: =IF(ISNUMBER($R177),DisimulateNexus($K$8:$K$17,M$8:M$17,T$3,T$4),"") ->  | U177: =IF(ISNUMBER($R177),DisimulateNexus($K$8:$K$17,N$8:N$17,U$3,U$4),"") ->  | V177: =IF(ISNUMBER($R177),DisimulateNexus($K$8:$K$17,O$8:O$17,V$3,V$4),"") ->  | W177: =IF(ISNUMBER($R177),DisimulateNexus($K$8:$K$17,P$8:P$17,W$3,W$4),"") -> 
A178: 171 | B178: 2015 | C178: 6 | D178: 20 | E178: 4 | F178: 6 | G178: 6 | H178: 8 | I178: 0 | S178: =IF(ISNUMBER($R178),DisimulateNexus($K$8:$K$17,L$8:L$17,S$3,S$4),"") ->  | T178: =IF(ISNUMBER($R178),DisimulateNexus($K$8:$K$17,M$8:M$17,T$3,T$4),"") ->  | U178: =IF(ISNUMBER($R178),DisimulateNexus($K$8:$K$17,N$8:N$17,U$3,U$4),"") ->  | V178: =IF(ISNUMBER($R178),DisimulateNexus($K$8:$K$17,O$8:O$17,V$3,V$4),"") ->  | W178: =IF(ISNUMBER($R178),DisimulateNexus($K$8:$K$17,P$8:P$17,W$3,W$4),"") -> 
A179: 172 | B179: 2015 | C179: 6 | D179: 21 | E179: 7 | F179: 8 | G179: 3 | H179: 0 | I179: 0 | S179: =IF(ISNUMBER($R179),DisimulateNexus($K$8:$K$17,L$8:L$17,S$3,S$4),"") ->  | T179: =IF(ISNUMBER($R179),DisimulateNexus($K$8:$K$17,M$8:M$17,T$3,T$4),"") ->  | U179: =IF(ISNUMBER($R179),DisimulateNexus($K$8:$K$17,N$8:N$17,U$3,U$4),"") ->  | V179: =IF(ISNUMBER($R179),DisimulateNexus($K$8:$K$17,O$8:O$17,V$3,V$4),"") ->  | W179: =IF(ISNUMBER($R179),DisimulateNexus($K$8:$K$17,P$8:P$17,W$3,W$4),"") -> 
A180: 173 | B180: 2015 | C180: 6 | D180: 22 | E180: 6 | F180: 8 | G180: 7 | H180: 3 | I180: 8 | S180: =IF(ISNUMBER($R180),DisimulateNexus($K$8:$K$17,L$8:L$17,S$3,S$4),"") ->  | T180: =IF(ISNUMBER($R180),DisimulateNexus($K$8:$K$17,M$8:M$17,T$3,T$4),"") ->  | U180: =IF(ISNUMBER($R180),DisimulateNexus($K$8:$K$17,N$8:N$17,U$3,U$4),"") ->  | V180: =IF(ISNUMBER($R180),DisimulateNexus($K$8:$K$17,O$8:O$17,V$3,V$4),"") ->  | W180: =IF(ISNUMBER($R180),DisimulateNexus($K$8:$K$17,P$8:P$17,W$3,W$4),"") -> 
A181: 174 | B181: 2015 | C181: 6 | D181: 23 | E181: 9 | F181: 0 | G181: 8 | H181: 3 | I181: 4 | S181: =IF(ISNUMBER($R181),DisimulateNexus($K$8:$K$17,L$8:L$17,S$3,S$4),"") ->  | T181: =IF(ISNUMBER($R181),DisimulateNexus($K$8:$K$17,M$8:M$17,T$3,T$4),"") ->  | U181: =IF(ISNUMBER($R181),DisimulateNexus($K$8:$K$17,N$8:N$17,U$3,U$4),"") ->  | V181: =IF(ISNUMBER($R181),DisimulateNexus($K$8:$K$17,O$8:O$17,V$3,V$4),"") ->  | W181: =IF(ISNUMBER($R181),DisimulateNexus($K$8:$K$17,P$8:P$17,W$3,W$4),"") -> 
A182: 175 | B182: 2015 | C182: 6 | D182: 24 | E182: 2 | F182: 0 | G182: 1 | H182: 0 | I182: 8 | S182: =IF(ISNUMBER($R182),DisimulateNexus($K$8:$K$17,L$8:L$17,S$3,S$4),"") ->  | T182: =IF(ISNUMBER($R182),DisimulateNexus($K$8:$K$17,M$8:M$17,T$3,T$4),"") ->  | U182: =IF(ISNUMBER($R182),DisimulateNexus($K$8:$K$17,N$8:N$17,U$3,U$4),"") ->  | V182: =IF(ISNUMBER($R182),DisimulateNexus($K$8:$K$17,O$8:O$17,V$3,V$4),"") ->  | W182: =IF(ISNUMBER($R182),DisimulateNexus($K$8:$K$17,P$8:P$17,W$3,W$4),"") -> 
A183: 176 | B183: 2015 | C183: 6 | D183: 25 | E183: 4 | F183: 1 | G183: 3 | H183: 2 | I183: 5 | S183: =IF(ISNUMBER($R183),DisimulateNexus($K$8:$K$17,L$8:L$17,S$3,S$4),"") ->  | T183: =IF(ISNUMBER($R183),DisimulateNexus($K$8:$K$17,M$8:M$17,T$3,T$4),"") ->  | U183: =IF(ISNUMBER($R183),DisimulateNexus($K$8:$K$17,N$8:N$17,U$3,U$4),"") ->  | V183: =IF(ISNUMBER($R183),DisimulateNexus($K$8:$K$17,O$8:O$17,V$3,V$4),"") ->  | W183: =IF(ISNUMBER($R183),DisimulateNexus($K$8:$K$17,P$8:P$17,W$3,W$4),"") -> 
A184: 177 | B184: 2015 | C184: 6 | D184: 26 | E184: 8 | F184: 8 | G184: 7 | H184: 4 | I184: 4 | S184: =IF(ISNUMBER($R184),DisimulateNexus($K$8:$K$17,L$8:L$17,S$3,S$4),"") ->  | T184: =IF(ISNUMBER($R184),DisimulateNexus($K$8:$K$17,M$8:M$17,T$3,T$4),"") ->  | U184: =IF(ISNUMBER($R184),DisimulateNexus($K$8:$K$17,N$8:N$17,U$3,U$4),"") ->  | V184: =IF(ISNUMBER($R184),DisimulateNexus($K$8:$K$17,O$8:O$17,V$3,V$4),"") ->  | W184: =IF(ISNUMBER($R184),DisimulateNexus($K$8:$K$17,P$8:P$17,W$3,W$4),"") -> 
A185: 178 | B185: 2015 | C185: 6 | D185: 27 | E185: 8 | F185: 1 | G185: 8 | H185: 0 | I185: 6 | S185: =IF(ISNUMBER($R185),DisimulateNexus($K$8:$K$17,L$8:L$17,S$3,S$4),"") ->  | T185: =IF(ISNUMBER($R185),DisimulateNexus($K$8:$K$17,M$8:M$17,T$3,T$4),"") ->  | U185: =IF(ISNUMBER($R185),DisimulateNexus($K$8:$K$17,N$8:N$17,U$3,U$4),"") ->  | V185: =IF(ISNUMBER($R185),DisimulateNexus($K$8:$K$17,O$8:O$17,V$3,V$4),"") ->  | W185: =IF(ISNUMBER($R185),DisimulateNexus($K$8:$K$17,P$8:P$17,W$3,W$4),"") -> 
A186: 179 | B186: 2015 | C186: 6 | D186: 28 | E186: 7 | F186: 4 | G186: 1 | H186: 8 | I186: 3 | S186: =IF(ISNUMBER($R186),DisimulateNexus($K$8:$K$17,L$8:L$17,S$3,S$4),"") ->  | T186: =IF(ISNUMBER($R186),DisimulateNexus($K$8:$K$17,M$8:M$17,T$3,T$4),"") ->  | U186: =IF(ISNUMBER($R186),DisimulateNexus($K$8:$K$17,N$8:N$17,U$3,U$4),"") ->  | V186: =IF(ISNUMBER($R186),DisimulateNexus($K$8:$K$17,O$8:O$17,V$3,V$4),"") ->  | W186: =IF(ISNUMBER($R186),DisimulateNexus($K$8:$K$17,P$8:P$17,W$3,W$4),"") -> 
A187: 180 | B187: 2015 | C187: 6 | D187: 29 | E187: 8 | F187: 9 | G187: 1 | H187: 9 | I187: 0 | S187: =IF(ISNUMBER($R187),DisimulateNexus($K$8:$K$17,L$8:L$17,S$3,S$4),"") ->  | T187: =IF(ISNUMBER($R187),DisimulateNexus($K$8:$K$17,M$8:M$17,T$3,T$4),"") ->  | U187: =IF(ISNUMBER($R187),DisimulateNexus($K$8:$K$17,N$8:N$17,U$3,U$4),"") ->  | V187: =IF(ISNUMBER($R187),DisimulateNexus($K$8:$K$17,O$8:O$17,V$3,V$4),"") ->  | W187: =IF(ISNUMBER($R187),DisimulateNexus($K$8:$K$17,P$8:P$17,W$3,W$4),"") -> 
A188: 181 | B188: 2015 | C188: 6 | D188: 30 | E188: 0 | F188: 6 | G188: 7 | H188: 7 | I188: 4 | S188: =IF(ISNUMBER($R188),DisimulateNexus($K$8:$K$17,L$8:L$17,S$3,S$4),"") ->  | T188: =IF(ISNUMBER($R188),DisimulateNexus($K$8:$K$17,M$8:M$17,T$3,T$4),"") ->  | U188: =IF(ISNUMBER($R188),DisimulateNexus($K$8:$K$17,N$8:N$17,U$3,U$4),"") ->  | V188: =IF(ISNUMBER($R188),DisimulateNexus($K$8:$K$17,O$8:O$17,V$3,V$4),"") ->  | W188: =IF(ISNUMBER($R188),DisimulateNexus($K$8:$K$17,P$8:P$17,W$3,W$4),"") -> 
A189: 182 | B189: 2015 | C189: 7 | D189: 1 | E189: 0 | F189: 4 | G189: 9 | H189: 6 | I189: 2 | S189: =IF(ISNUMBER($R189),DisimulateNexus($K$8:$K$17,L$8:L$17,S$3,S$4),"") ->  | T189: =IF(ISNUMBER($R189),DisimulateNexus($K$8:$K$17,M$8:M$17,T$3,T$4),"") ->  | U189: =IF(ISNUMBER($R189),DisimulateNexus($K$8:$K$17,N$8:N$17,U$3,U$4),"") ->  | V189: =IF(ISNUMBER($R189),DisimulateNexus($K$8:$K$17,O$8:O$17,V$3,V$4),"") ->  | W189: =IF(ISNUMBER($R189),DisimulateNexus($K$8:$K$17,P$8:P$17,W$3,W$4),"") -> 
A190: 183 | B190: 2015 | C190: 7 | D190: 2 | E190: 1 | F190: 4 | G190: 9 | H190: 4 | I190: 3 | S190: =IF(ISNUMBER($R190),DisimulateNexus($K$8:$K$17,L$8:L$17,S$3,S$4),"") ->  | T190: =IF(ISNUMBER($R190),DisimulateNexus($K$8:$K$17,M$8:M$17,T$3,T$4),"") ->  | U190: =IF(ISNUMBER($R190),DisimulateNexus($K$8:$K$17,N$8:N$17,U$3,U$4),"") ->  | V190: =IF(ISNUMBER($R190),DisimulateNexus($K$8:$K$17,O$8:O$17,V$3,V$4),"") ->  | W190: =IF(ISNUMBER($R190),DisimulateNexus($K$8:$K$17,P$8:P$17,W$3,W$4),"") -> 
A191: 184 | B191: 2015 | C191: 7 | D191: 3 | E191: 7 | F191: 6 | G191: 9 | H191: 5 | I191: 6 | S191: =IF(ISNUMBER($R191),DisimulateNexus($K$8:$K$17,L$8:L$17,S$3,S$4),"") ->  | T191: =IF(ISNUMBER($R191),DisimulateNexus($K$8:$K$17,M$8:M$17,T$3,T$4),"") ->  | U191: =IF(ISNUMBER($R191),DisimulateNexus($K$8:$K$17,N$8:N$17,U$3,U$4),"") ->  | V191: =IF(ISNUMBER($R191),DisimulateNexus($K$8:$K$17,O$8:O$17,V$3,V$4),"") ->  | W191: =IF(ISNUMBER($R191),DisimulateNexus($K$8:$K$17,P$8:P$17,W$3,W$4),"") -> 
A192: 185 | B192: 2015 | C192: 7 | D192: 4 | E192: 3 | F192: 3 | G192: 5 | H192: 2 | I192: 8 | S192: =IF(ISNUMBER($R192),DisimulateNexus($K$8:$K$17,L$8:L$17,S$3,S$4),"") ->  | T192: =IF(ISNUMBER($R192),DisimulateNexus($K$8:$K$17,M$8:M$17,T$3,T$4),"") ->  | U192: =IF(ISNUMBER($R192),DisimulateNexus($K$8:$K$17,N$8:N$17,U$3,U$4),"") ->  | V192: =IF(ISNUMBER($R192),DisimulateNexus($K$8:$K$17,O$8:O$17,V$3,V$4),"") ->  | W192: =IF(ISNUMBER($R192),DisimulateNexus($K$8:$K$17,P$8:P$17,W$3,W$4),"") -> 
A193: 186 | B193: 2015 | C193: 7 | D193: 5 | E193: 9 | F193: 8 | G193: 0 | H193: 2 | I193: 9 | S193: =IF(ISNUMBER($R193),DisimulateNexus($K$8:$K$17,L$8:L$17,S$3,S$4),"") ->  | T193: =IF(ISNUMBER($R193),DisimulateNexus($K$8:$K$17,M$8:M$17,T$3,T$4),"") ->  | U193: =IF(ISNUMBER($R193),DisimulateNexus($K$8:$K$17,N$8:N$17,U$3,U$4),"") ->  | V193: =IF(ISNUMBER($R193),DisimulateNexus($K$8:$K$17,O$8:O$17,V$3,V$4),"") ->  | W193: =IF(ISNUMBER($R193),DisimulateNexus($K$8:$K$17,P$8:P$17,W$3,W$4),"") -> 
A194: 187 | B194: 2015 | C194: 7 | D194: 6 | S194: =IF(ISNUMBER($R194),DisimulateNexus($K$8:$K$17,L$8:L$17,S$3,S$4),"") ->  | T194: =IF(ISNUMBER($R194),DisimulateNexus($K$8:$K$17,M$8:M$17,T$3,T$4),"") ->  | U194: =IF(ISNUMBER($R194),DisimulateNexus($K$8:$K$17,N$8:N$17,U$3,U$4),"") ->  | V194: =IF(ISNUMBER($R194),DisimulateNexus($K$8:$K$17,O$8:O$17,V$3,V$4),"") ->  | W194: =IF(ISNUMBER($R194),DisimulateNexus($K$8:$K$17,P$8:P$17,W$3,W$4),"") -> 
A195: 188 | B195: 2015 | C195: 7 | D195: 7 | S195: =IF(ISNUMBER($R195),DisimulateNexus($K$8:$K$17,L$8:L$17,S$3,S$4),"") ->  | T195: =IF(ISNUMBER($R195),DisimulateNexus($K$8:$K$17,M$8:M$17,T$3,T$4),"") ->  | U195: =IF(ISNUMBER($R195),DisimulateNexus($K$8:$K$17,N$8:N$17,U$3,U$4),"") ->  | V195: =IF(ISNUMBER($R195),DisimulateNexus($K$8:$K$17,O$8:O$17,V$3,V$4),"") ->  | W195: =IF(ISNUMBER($R195),DisimulateNexus($K$8:$K$17,P$8:P$17,W$3,W$4),"") -> 
A196: 189 | B196: 2015 | C196: 7 | D196: 8 | S196: =IF(ISNUMBER($R196),DisimulateNexus($K$8:$K$17,L$8:L$17,S$3,S$4),"") ->  | T196: =IF(ISNUMBER($R196),DisimulateNexus($K$8:$K$17,M$8:M$17,T$3,T$4),"") ->  | U196: =IF(ISNUMBER($R196),DisimulateNexus($K$8:$K$17,N$8:N$17,U$3,U$4),"") ->  | V196: =IF(ISNUMBER($R196),DisimulateNexus($K$8:$K$17,O$8:O$17,V$3,V$4),"") ->  | W196: =IF(ISNUMBER($R196),DisimulateNexus($K$8:$K$17,P$8:P$17,W$3,W$4),"") -> 
A197: 190 | B197: 2015 | C197: 7 | D197: 9 | S197: =IF(ISNUMBER($R197),DisimulateNexus($K$8:$K$17,L$8:L$17,S$3,S$4),"") ->  | T197: =IF(ISNUMBER($R197),DisimulateNexus($K$8:$K$17,M$8:M$17,T$3,T$4),"") ->  | U197: =IF(ISNUMBER($R197),DisimulateNexus($K$8:$K$17,N$8:N$17,U$3,U$4),"") ->  | V197: =IF(ISNUMBER($R197),DisimulateNexus($K$8:$K$17,O$8:O$17,V$3,V$4),"") ->  | W197: =IF(ISNUMBER($R197),DisimulateNexus($K$8:$K$17,P$8:P$17,W$3,W$4),"") -> 
A198: 191 | B198: 2015 | C198: 7 | D198: 10 | S198: =IF(ISNUMBER($R198),DisimulateNexus($K$8:$K$17,L$8:L$17,S$3,S$4),"") ->  | T198: =IF(ISNUMBER($R198),DisimulateNexus($K$8:$K$17,M$8:M$17,T$3,T$4),"") ->  | U198: =IF(ISNUMBER($R198),DisimulateNexus($K$8:$K$17,N$8:N$17,U$3,U$4),"") ->  | V198: =IF(ISNUMBER($R198),DisimulateNexus($K$8:$K$17,O$8:O$17,V$3,V$4),"") ->  | W198: =IF(ISNUMBER($R198),DisimulateNexus($K$8:$K$17,P$8:P$17,W$3,W$4),"") -> 
A199: 192 | B199: 2015 | C199: 7 | D199: 11 | S199: =IF(ISNUMBER($R199),DisimulateNexus($K$8:$K$17,L$8:L$17,S$3,S$4),"") ->  | T199: =IF(ISNUMBER($R199),DisimulateNexus($K$8:$K$17,M$8:M$17,T$3,T$4),"") ->  | U199: =IF(ISNUMBER($R199),DisimulateNexus($K$8:$K$17,N$8:N$17,U$3,U$4),"") ->  | V199: =IF(ISNUMBER($R199),DisimulateNexus($K$8:$K$17,O$8:O$17,V$3,V$4),"") ->  | W199: =IF(ISNUMBER($R199),DisimulateNexus($K$8:$K$17,P$8:P$17,W$3,W$4),"") -> 
A200: 193 | B200: 2015 | C200: 7 | D200: 12 | S200: =IF(ISNUMBER($R200),DisimulateNexus($K$8:$K$17,L$8:L$17,S$3,S$4),"") ->  | T200: =IF(ISNUMBER($R200),DisimulateNexus($K$8:$K$17,M$8:M$17,T$3,T$4),"") ->  | U200: =IF(ISNUMBER($R200),DisimulateNexus($K$8:$K$17,N$8:N$17,U$3,U$4),"") ->  | V200: =IF(ISNUMBER($R200),DisimulateNexus($K$8:$K$17,O$8:O$17,V$3,V$4),"") ->  | W200: =IF(ISNUMBER($R200),DisimulateNexus($K$8:$K$17,P$8:P$17,W$3,W$4),"") -> 
... 1307 more rows
